Body Name,Body,Creditor Name,Spending Service,Nature of Spend,Ledger Date,Reference Number,Goods Amount (excluding VAT)
Lancaster City Council,30UH,"123 Taxis, Newquay",Health & Housing,Use Of Public Tpt - Officers,12/01/2016,spc001333,13
Lancaster City Council,30UH,2B Hydraulics,Environmental Services,Repair & Mtce Of Vehicles,10/02/2016,32367,311
Lancaster City Council,30UH,4Gon,Resources,Equipment and Tools - General,01/02/2016,jpc000645,75
Lancaster City Council,30UH,4Gon,Resources,Infrastructure - Update & Maintenance,01/02/2016,jpc000644,66.79
Lancaster City Council,30UH,4Gon,Resources,Materials - General,01/02/2016,jpc000643,66.67
Lancaster City Council,30UH,4Gon,Resources,Services - Consultants,01/03/2016,jpc000670,147.72
Lancaster City Council,30UH,A1 Public coldstore,Health & Housing,Services - General,28/01/2016,spc001385,1917
Lancaster City Council,30UH,A1 Supa Skips Ltd,Health & Housing,Materials (Minor Adaptations),01/03/2016,spc001449,63.71
Lancaster City Council,30UH,A2B Taxis,Health & Housing,Use Of Public Tpt - Officers,12/01/2016,spc001331,38.5
Lancaster City Council,30UH,Abbey Carpets,Health & Housing,R & M - Buildings,02/03/2016,spc001465,44.16
Lancaster City Council,30UH,ABC Products,Regeneration and Planning,Office Equipment,01/02/2016,npc001042,4.99
Lancaster City Council,30UH,ABC Products,Regeneration and Planning,Printing & Stationery,01/02/2016,npc001043,3.99
Lancaster City Council,30UH,Access Point Ltd,Governance,Miscellaneous Advertising,04/01/2016,dpc000352,714.51
Lancaster City Council,30UH,Accor Hotels,Management Team,Conferences & Seminars,08/02/2016,mpc000050,109.58
Lancaster City Council,30UH,Action on Hearing loss,Health & Housing,Materials - General,01/03/2016,spc001456,28.94
Lancaster City Council,30UH,Activate Event Management Ltd,Regeneration and Planning,Service Training Budget,05/02/2016,npc001045,420
Lancaster City Council,30UH,Adobe,Regeneration and Planning,Marketing,02/03/2016,npc001092,7.96
Lancaster City Council,30UH,Adobe,Regeneration and Planning,Marketing,02/03/2016,npc001093,39.82
Lancaster City Council,30UH,Adobe,Regeneration and Planning,Marketing,10/03/2016,npc001106,1410
Lancaster City Council,30UH,Adobe,Health & Housing,Photographic Materials,04/01/2016,bpc003719,5.99
Lancaster City Council,30UH,Adobe,Regeneration and Planning,Services - General,04/01/2016,npc001008,14.29
Lancaster City Council,30UH,Adobe,Regeneration and Planning,Services - General,02/02/2016,npc001044,14.29
Lancaster City Council,30UH,Adobe,Regeneration and Planning,Services - General,29/02/2016,npc001075,14.29
Lancaster City Council,30UH,Adobe,Health & Housing,Software Purchase\Licences,04/01/2016,bpc003716,285.84
Lancaster City Council,30UH,Adt Fire And Security PLC,Environmental Services,Security Services,05/02/2016,32291,192
Lancaster City Council,30UH,AGM Acorn,Health & Housing,R & M - Buildings,01/02/2016,bpc003786,720
Lancaster City Council,30UH,Aldi,Governance,Civic Receptions & Mayoral Functions,11/01/2016,dpc000354,9.48
Lancaster City Council,30UH,Aldi,Health & Housing,Materials For Resale,08/01/2016,bpc003726,9.23
Lancaster City Council,30UH,Aldi,Health & Housing,Materials For Resale,26/03/2016,bpc003976,10.34
Lancaster City Council,30UH,Alliance Disposables Ltd,Environmental Services,Equipment and Tools - General,04/01/2016,31816,67.63
Lancaster City Council,30UH,Amazon,Health & Housing,Equipment Funded by Reserves,22/02/2016,hpc000348,303.71
Lancaster City Council,30UH,Amazon,Health & Housing,Books & Periodicals,26/01/2016,spc001382,49.95
Lancaster City Council,30UH,Trainline,Health & Housing,Children & Young People,05/01/2016,hpc000325,9.74
Lancaster City Council,30UH,Amazon,Health & Housing,Community Development,22/03/2016,hpc000365,5.33
Lancaster City Council,30UH,Amazon,Resources,Computer Equipment,22/02/2016,jpc000665,33.33
Lancaster City Council,30UH,Amazon,Regeneration and Planning,Computer Equipment,15/01/2016,npc001024,10.31
Lancaster City Council,30UH,Amazon,Regeneration and Planning,Computer Equipment,30/03/2016,npc001129,28.76
Lancaster City Council,30UH,Amazon,Health & Housing,Corporate Safety,07/01/2016,spc001326,59.12
Lancaster City Council,30UH,Amazon,Health & Housing,Corporate Safety,05/01/2016,spc001315,61.42
Lancaster City Council,30UH,Amazon,Health & Housing,Corporate Safety,05/01/2016,spc001318,43
Lancaster City Council,30UH,Amazon,Health & Housing,Equipment and Tools - General,28/02/2016,bpc003853,11.55
Lancaster City Council,30UH,Amazon,Health & Housing,Equipment and Tools - General,28/02/2016,bpc003854,6.66
Lancaster City Council,30UH,Amazon,Health & Housing,Equipment and Tools - General,28/02/2016,bpc003855,1.1
Lancaster City Council,30UH,Amazon,Health & Housing,Equipment and Tools - General,28/02/2016,bpc003856,2.47
Lancaster City Council,30UH,Amazon,Health & Housing,Equipment and Tools - General,28/02/2016,bpc003857,11.17
Lancaster City Council,30UH,Amazon,Health & Housing,Equipment and Tools - General,03/03/2016,bpc003883,16.87
Lancaster City Council,30UH,Amazon,Health & Housing,Equipment and Tools - General,23/03/2016,bpc003952,220.83
Lancaster City Council,30UH,Amazon,Health & Housing,Equipment and Tools - General,23/03/2016,bpc003953,22.19
Lancaster City Council,30UH,Amazon,Resources,Equipment and Tools - General,01/02/2016,jpc000627,17.48
Lancaster City Council,30UH,Amazon,Regeneration and Planning,Equipment and Tools - General,01/03/2016,npc001077,17.22
Lancaster City Council,30UH,Amazon,Health & Housing,Equipment and Tools - General,23/01/2016,bpc003742,19.92
Lancaster City Council,30UH,Amazon,Health & Housing,Equipment and Tools - General,02/02/2016,bpc003793,8.33
Lancaster City Council,30UH,Amazon,Health & Housing,Equipment and Tools - General,02/02/2016,bpc003794,24.57
Lancaster City Council,30UH,Amazon,Health & Housing,Equipment and Tools - General,02/02/2016,bpc003795,24.57
Lancaster City Council,30UH,Amazon,Health & Housing,Equipment and Tools - General,02/02/2016,bpc003796,24.57
Lancaster City Council,30UH,Amazon,Health & Housing,Equipment and Tools - General,02/02/2016,bpc003797,24.57
Lancaster City Council,30UH,Amazon,Health & Housing,Equipment and Tools - General,02/02/2016,bpc003800,24.97
Lancaster City Council,30UH,Amazon,Health & Housing,Equipment and Tools - General,05/03/2016,bpc003896,9.67
Lancaster City Council,30UH,Amazon,Health & Housing,Equipment and Tools - General,05/03/2016,bpc003897,2.48
Lancaster City Council,30UH,Amazon,Health & Housing,Equipment and Tools - General,05/03/2016,bpc003898,7.85
Lancaster City Council,30UH,Amazon,Health & Housing,Equipment and Tools - General,05/03/2016,bpc003899,9.97
Lancaster City Council,30UH,Amazon,Health & Housing,Equipment and Tools - General,05/03/2016,bpc003900,3.13
Lancaster City Council,30UH,Amazon,Health & Housing,Equipment and Tools - General,05/03/2016,bpc003901,4.65
Lancaster City Council,30UH,Amazon,Governance,Equipment and Tools - General,15/01/2016,dpc000357,4.76
Lancaster City Council,30UH,Amazon,Health & Housing,Equipment and Tools - General,05/01/2016,spc001313,14.24
Lancaster City Council,30UH,Amazon,Health & Housing,Equipment and Tools - General,18/01/2016,spc001335,34.74
Lancaster City Council,30UH,Amazon,Health & Housing,Equipment and Tools - General,29/01/2016,spc001393,39.65
Lancaster City Council,30UH,Amazon,Health & Housing,Equipment and Tools - General,29/01/2016,spc001396,9.6
Lancaster City Council,30UH,Amazon,Health & Housing,Equipment and Tools - General,02/02/2016,spc001402,17.99
Lancaster City Council,30UH,Amazon,Health & Housing,Equipment and Tools - General,17/03/2016,spc001500,57.14
Lancaster City Council,30UH,Amazon,Health & Housing,Equipment and Tools - General,17/03/2016,spc001501,36.8
Lancaster City Council,30UH,Amazon,Health & Housing,Equipment and Tools - General,21/03/2016,spc001514,19.99
Lancaster City Council,30UH,Amazon,Resources,Equipment and Tools - General,07/01/2016,jpc000616,62.46
Lancaster City Council,30UH,Amazon,Health & Housing,Grave Excavation,06/01/2016,spc001320,3.25
Lancaster City Council,30UH,Amazon,Health & Housing,Grave Excavation,10/02/2016,spc001415,27.48
Lancaster City Council,30UH,Amazon,Health & Housing,Grave Excavation,10/02/2016,spc001416,27.48
Lancaster City Council,30UH,Amazon,Health & Housing,Grave Excavation,10/02/2016,spc001417,27.48
Lancaster City Council,30UH,Amazon,Health & Housing,Home Improvement Works,02/03/2016,spc001462,1.29
Lancaster City Council,30UH,Amazon,Health & Housing,Home Improvement Works,02/03/2016,spc001463,435.13
Lancaster City Council,30UH,Amazon,Resources,Infrastructure - Update & Maintenance,01/02/2016,jpc000629,26.41
Lancaster City Council,30UH,Amazon,Resources,Infrastructure - Update & Maintenance,01/02/2016,jpc000631,16.58
Lancaster City Council,30UH,Amazon,Resources,Infrastructure - Update & Maintenance,01/02/2016,jpc000632,313.95
Lancaster City Council,30UH,Amazon,Resources,Infrastructure - Update & Maintenance,07/01/2016,jpc000617,25.67
Lancaster City Council,30UH,Amazon,Resources,Infrastructure - Update & Maintenance,07/01/2016,jpc000619,199.83
Lancaster City Council,30UH,Amazon,Resources,Infrastructure - Update & Maintenance,01/02/2016,jpc000628,14.92
Lancaster City Council,30UH,Amazon,Resources,IT Consumables,01/02/2016,jpc000630,38.13
Lancaster City Council,30UH,Amazon,Governance,IT Consumables,25/01/2016,dpc000360,29.29
Lancaster City Council,30UH,Amazon,Health & Housing,Materials - General,29/01/2016,bpc003757,65
Lancaster City Council,30UH,Amazon,Health & Housing,Materials - General,29/01/2016,bpc003758,59.4
Lancaster City Council,30UH,Amazon,Health & Housing,Materials - General,29/01/2016,bpc003759,15.33
Lancaster City Council,30UH,Amazon,Health & Housing,Materials - General,28/02/2016,bpc003845,21.65
Lancaster City Council,30UH,Amazon,Health & Housing,Materials - General,28/02/2016,bpc003846,13.94
Lancaster City Council,30UH,Amazon,Health & Housing,Materials - General,28/02/2016,bpc003847,3.68
Lancaster City Council,30UH,Amazon,Health & Housing,Materials - General,28/02/2016,bpc003858,8.47
Lancaster City Council,30UH,Amazon,Health & Housing,Materials - General,23/03/2016,bpc003946,3.32
Lancaster City Council,30UH,Amazon,Health & Housing,Materials - General,23/03/2016,bpc003947,26.97
Lancaster City Council,30UH,Amazon,Health & Housing,Materials - General,23/03/2016,bpc003949,15.27
Lancaster City Council,30UH,Amazon,Health & Housing,Materials - General,23/03/2016,bpc003954,12.26
Lancaster City Council,30UH,Amazon,Health & Housing,Materials - General,26/03/2016,bpc003974,43.89
Lancaster City Council,30UH,Amazon,Resources,Mobile Telephones,01/02/2016,jpc000633,416.62
Lancaster City Council,30UH,Amazon,Resources,Mobile Telephones,08/02/2016,jpc000650,166.65
Lancaster City Council,30UH,Amazon,Resources,Mobile Telephones,22/02/2016,jpc000664,17.16
Lancaster City Council,30UH,Amazon,Resources,Mobile Telephones,22/02/2016,jpc000667,17.16
Lancaster City Council,30UH,Amazon,Regeneration and Planning,Office Equipment,09/02/2016,npc001055,120.21
Lancaster City Council,30UH,Amazon,Resources,Office Equipment,04/01/2016,rpc000075,11.72
Lancaster City Council,30UH,Amazon,Regeneration and Planning,Office Equipment,12/02/2016,32369,21.65
Lancaster City Council,30UH,Amazon,Resources,Office Equipment,22/02/2016,jpc000668,382.5
Lancaster City Council,30UH,Amazon,Health & Housing,Office Equipment,01/02/2016,hpc000330,86.72
Lancaster City Council,30UH,Amazon,Health & Housing,Office Equipment,02/02/2016,hpc000347,1.89
Lancaster City Council,30UH,Amazon,Health & Housing,Other Cleaning,01/02/2016,hpc000329,23.44
Lancaster City Council,30UH,Amazon,Health & Housing,Printing & Stationery,28/02/2016,bpc003848,13.54
Lancaster City Council,30UH,Amazon,Health & Housing,Printing & Stationery,28/02/2016,bpc003849,10.69
Lancaster City Council,30UH,Amazon,Health & Housing,Printing & Stationery,28/02/2016,bpc003850,7.65
Lancaster City Council,30UH,Amazon,Health & Housing,Printing & Stationery,28/02/2016,bpc003851,8.27
Lancaster City Council,30UH,Amazon,Health & Housing,Printing & Stationery,28/02/2016,bpc003852,2.97
Lancaster City Council,30UH,Amazon,Health & Housing,Printing & Stationery,05/01/2016,hpc000313,14.53
Lancaster City Council,30UH,Amazon,Resources,Printing & Stationery,21/03/2016,fpc000164,20.2
Lancaster City Council,30UH,Amazon,Health & Housing,Printing & Stationery,05/01/2016,hpc000312,14.84
Lancaster City Council,30UH,Amazon,Health & Housing,Printing & Stationery,05/01/2016,hpc000321,25.89
Lancaster City Council,30UH,Amazon,Health & Housing,Printing & Stationery,05/01/2016,hpc000322,39.93
Lancaster City Council,30UH,Amazon,Health & Housing,Printing & Stationery,05/01/2016,hpc000324,38.08
Lancaster City Council,30UH,Amazon,Health & Housing,Printing & Stationery,02/03/2016,hpc000355,35.72
Lancaster City Council,30UH,Amazon,Resources,Purchase Of Equipment,01/02/2016,jpc000625,22.49
Lancaster City Council,30UH,Amazon,Resources,Purchase Of Equipment,01/02/2016,jpc000626,32.07
Lancaster City Council,30UH,Amazon,Resources,Purchase Of Equipment,01/02/2016,jpc000634,16.66
Lancaster City Council,30UH,Amazon,Resources,Purchase Of Equipment,01/02/2016,jpc000649,789.98
Lancaster City Council,30UH,Amazon,Resources,Purchase Of Equipment,22/02/2016,jpc000666,96.52
Lancaster City Council,30UH,Amazon,Resources,Purchase Of Equipment,08/03/2016,jpc000680,-0.47
Lancaster City Council,30UH,Amazon,Health & Housing,R & M - Buildings,22/02/2016,spc001437,34.46
Lancaster City Council,30UH,Amazon,Health & Housing,R & M - Environmental Works,21/01/2016,hpc000327,199.83
Lancaster City Council,30UH,Amazon,Health & Housing,R & M - Environmental Works,02/03/2016,hpc000362,28.87
Lancaster City Council,30UH,Amazon,Health & Housing,Sanctuary Scheme,01/02/2016,spc001391,19.95
Lancaster City Council,30UH,Amazon,Regeneration and Planning,Services - General,05/02/2016,npc001049,30.99
Lancaster City Council,30UH,Amazon,Regeneration and Planning,Services - General,05/02/2016,npc001050,20.3
Lancaster City Council,30UH,Amazon,Regeneration and Planning,Equipment and Tools - General,02/03/2016,npc001087,10.41
Lancaster City Council,30UH,Amazon,Environmental Services,Mobile Telephones,03/03/2016,32623,34.93
Lancaster City Council,30UH,Amazon,Environmental Services,Printing & Stationery,03/03/2016,32638,37.5
Lancaster City Council,30UH,Amazon,Governance,Printing & Stationery,18/03/2016,dpc000374,20.82
Lancaster City Council,30UH,Amazon,Environmental Services,Materials - General,25/02/2016,32479,4.95
Lancaster City Council,30UH,Amazon,Health & Housing,Equipment and Tools - General,02/02/2016,bpc003801,34.29
Lancaster City Council,30UH,Amazon,Regeneration and Planning,Equipment and Tools - General,30/03/2016,npc001128,-10.41
Lancaster City Council,30UH,Amazon,Environmental Services,Telephones,07/01/2016,31892,8.98
Lancaster City Council,30UH,Amazon,Regeneration and Planning,Computer Equipment,02/03/2016,npc001084,35.32
Lancaster City Council,30UH,Amazon,Regeneration and Planning,Computer Equipment,02/03/2016,npc001085,129.99
Lancaster City Council,30UH,Amazon,Regeneration and Planning,Computer Equipment,02/03/2016,npc001086,-129.99
Lancaster City Council,30UH,Amazon,Environmental Services,Equipment and Tools - General,13/01/2016,31962,18.51
Lancaster City Council,30UH,Amazon,Health & Housing,Materials - General,02/03/2016,spc001458,16.67
Lancaster City Council,30UH,Amazon,Health & Housing,Materials - General,18/01/2016,spc001349,5.02
Lancaster City Council,30UH,Amazon,Health & Housing,Materials For Resale,01/02/2016,bpc003774,23.51
Lancaster City Council,30UH,Amazon,Health & Housing,Equipment and Tools - General,01/02/2016,bpc003787,47.14
Lancaster City Council,30UH,Amazon,Health & Housing,Equipment and Tools - General,03/02/2016,bpc003805,41.31
Lancaster City Council,30UH,Amazon,Health & Housing,Equipment and Tools - General,23/03/2016,bpc003944,80.8
Lancaster City Council,30UH,Amazon,Health & Housing,Printing & Stationery,01/02/2016,bpc003775,10.06
Lancaster City Council,30UH,Amazon,Health & Housing,Printing & Stationery,03/02/2016,bpc003808,11.9
Lancaster City Council,30UH,Amazon,Health & Housing,Printing & Stationery,23/03/2016,bpc003958,41.74
Lancaster City Council,30UH,Amazon,Health & Housing,Printing & Stationery,23/03/2016,bpc003964,34.95
Lancaster City Council,30UH,Amazon,Health & Housing,Printing & Stationery,23/03/2016,bpc003965,24.72
Lancaster City Council,30UH,Amazon,Regeneration and Planning,Printing & Stationery,05/01/2016,npc001010,15.16
Lancaster City Council,30UH,Amazon,Environmental Services,Office Equipment,12/02/2016,32371,25.25
Lancaster City Council,30UH,Andrews Water Treatment,Regeneration and Planning,R & M - Buildings,01/02/2016,npc001037,24.99
Lancaster City Council,30UH,ANIMAL PLANET,Environmental Services,Materials - General,04/02/2016,32282,19.99
Lancaster City Council,30UH,ao,Resources,Hire Of Equipment,04/02/2016,ppc000430,298.32
Lancaster City Council,30UH,Appliance Direct,Health & Housing,Equipment Funded by Reserves,05/01/2016,hpc000326,137.49
Lancaster City Council,30UH,Appliance Direct,Environmental Services,Equipment Funded by Reserves,12/02/2016,32368,5383.08
Lancaster City Council,30UH,Appliance Direct,Health & Housing,Equipment Funded by Reserves,01/02/2016,hpc000331,145.82
Lancaster City Council,30UH,Appliance Direct,Health & Housing,Equipment Funded by Reserves,02/02/2016,hpc000335,204.16
Lancaster City Council,30UH,Appliance Direct,Health & Housing,Equipment Funded by Reserves,02/02/2016,hpc000336,204.16
Lancaster City Council,30UH,Appliance Direct,Health & Housing,Equipment Funded by Reserves,02/02/2016,hpc000337,204.16
Lancaster City Council,30UH,Appliance Direct,Health & Housing,Equipment Funded by Reserves,02/02/2016,hpc000338,204.16
Lancaster City Council,30UH,Appliance Direct,Health & Housing,Equipment Funded by Reserves,02/02/2016,hpc000339,137.49
Lancaster City Council,30UH,Appliance Direct,Health & Housing,Equipment Funded by Reserves,02/02/2016,hpc000341,137.49
Lancaster City Council,30UH,Appliance Direct,Health & Housing,Equipment Funded by Reserves,02/02/2016,hpc000342,137.49
Lancaster City Council,30UH,Appliance Direct,Health & Housing,Equipment Funded by Reserves,02/02/2016,hpc000343,137.49
Lancaster City Council,30UH,Appliance Direct,Health & Housing,Equipment Funded by Reserves,02/02/2016,hpc000346,133.32
Lancaster City Council,30UH,Appliance Direct,Health & Housing,Equipment Funded by Reserves,02/03/2016,hpc000359,145.82
Lancaster City Council,30UH,Appliance Direct,Health & Housing,Office Equipment,02/02/2016,hpc000345,36.03
Lancaster City Council,30UH,Argos,Governance,Equipment and Tools - General,17/03/2016,dpc000373,31.65
Lancaster City Council,30UH,Argos,Health & Housing,Equipment and Tools - General,18/01/2016,spc001337,86.64
Lancaster City Council,30UH,Argos,Resources,Fixtures & Fittings - General,22/02/2016,jpc000660,39.98
Lancaster City Council,30UH,Argos,Health & Housing,Homelessness Priority Need Order,02/02/2016,spc001400,273.7
Lancaster City Council,30UH,Argos,Health & Housing,Homelessness Priority Need Order,02/02/2016,spc001401,-20
Lancaster City Council,30UH,Argos,Health & Housing,Homelessness Priority Need Order,04/02/2016,spc001408,5.98
Lancaster City Council,30UH,Argos,Resources,Mobile Telephones,01/02/2016,jpc000646,49.96
Lancaster City Council,30UH,Argos,Health & Housing,R & M - Environmental Works,05/01/2016,hpc000319,20.82
Lancaster City Council,30UH,Argos,Health & Housing,Services - General,21/01/2016,bpc003739,41.15
Lancaster City Council,30UH,Arnold Clark,Environmental Services,Repair & Mtce Of Vehicles,05/01/2016,31872,23
Lancaster City Council,30UH,ASA,Health & Housing,Materials For Resale,26/01/2016,bpc003747,257.55
Lancaster City Council,30UH,ASA,Health & Housing,Materials For Resale,28/01/2016,bpc003751,140.51
Lancaster City Council,30UH,ASA,Health & Housing,Materials For Resale,17/03/2016,bpc003914,72.55
Lancaster City Council,30UH,ASA,Health & Housing,Materials For Resale,26/03/2016,bpc003973,143.26
Lancaster City Council,30UH,ASA,Health & Housing,Materials For Resale,28/01/2016,bpc003749,362.1
Lancaster City Council,30UH,ASDA,Environmental Services,Entertainment Fees,05/01/2016,31868,15
Lancaster City Council,30UH,ASDA,Health & Housing,Equipment and Tools - General,02/01/2016,bpc003698,20
Lancaster City Council,30UH,ASDA,Health & Housing,Equipment and Tools - General,02/01/2016,bpc003701,24.1
Lancaster City Council,30UH,ASDA,Health & Housing,Equipment and Tools - General,25/01/2016,bpc003746,6.67
Lancaster City Council,30UH,ASDA,Health & Housing,Equipment and Tools - General,16/02/2016,bpc003823,16.72
Lancaster City Council,30UH,ASDA,Health & Housing,Equipment and Tools - General,27/02/2016,bpc003844,14
Lancaster City Council,30UH,ASDA,Health & Housing,Equipment and Tools - General,03/03/2016,bpc003884,8.08
Lancaster City Council,30UH,ASDA,Health & Housing,Equipment and Tools - General,17/03/2016,bpc003929,8.33
Lancaster City Council,30UH,ASDA,Health & Housing,Equipment and Tools - General,11/01/2016,bpc003728,2.08
Lancaster City Council,30UH,ASDA,Health & Housing,Equipment and Tools - General,11/01/2016,bpc003729,19.94
Lancaster City Council,30UH,ASDA,Governance,Hospitality,22/03/2016,lpc000354,44.75
Lancaster City Council,30UH,ASDA,Health & Housing,Materials For Resale,02/01/2016,bpc003699,8.46
Lancaster City Council,30UH,ASDA,Health & Housing,Materials For Resale,02/01/2016,bpc003700,9.33
Lancaster City Council,30UH,ASDA,Health & Housing,Materials For Resale,02/01/2016,bpc003703,48.75
Lancaster City Council,30UH,ASDA,Health & Housing,Materials For Resale,12/01/2016,bpc003730,11
Lancaster City Council,30UH,ASDA,Health & Housing,Materials For Resale,25/01/2016,bpc003745,3.9
Lancaster City Council,30UH,ASDA,Health & Housing,Materials For Resale,30/01/2016,bpc003761,36.48
Lancaster City Council,30UH,ASDA,Health & Housing,Materials For Resale,16/02/2016,bpc003824,21.3
Lancaster City Council,30UH,ASDA,Health & Housing,Materials For Resale,16/02/2016,bpc003825,10.4
Lancaster City Council,30UH,ASDA,Health & Housing,Materials For Resale,21/03/2016,bpc003936,5.2
Lancaster City Council,30UH,ASDA,Health & Housing,Materials For Resale,18/02/2016,bpc003829,32.02
Lancaster City Council,30UH,ASDA,Health & Housing,Materials For Resale,04/03/2016,bpc003886,20.3
Lancaster City Council,30UH,ASDA,Health & Housing,Materials For Resale,17/03/2016,bpc003923,135.64
Lancaster City Council,30UH,ASDA,Health & Housing,Materials For Resale,17/03/2016,bpc003924,5.2
Lancaster City Council,30UH,ASDA,Health & Housing,Materials For Resale,11/01/2016,bpc003727,14.4
Lancaster City Council,30UH,ASDA,Health & Housing,Services - General,22/02/2016,bpc003835,19
Lancaster City Council,30UH,ASDA,Health & Housing,Services - General,11/02/2016,bpc003820,84.25
Lancaster City Council,30UH,ASDA,Health & Housing,Services - General,24/03/2016,bpc003972,33.62
Lancaster City Council,30UH,ASDA,Health & Housing,Equipment and Tools - General,28/01/2016,bpc003748,12.5
Lancaster City Council,30UH,ASDA,Health & Housing,Clothing & Uniforms,09/02/2016,bpc003816,16
Lancaster City Council,30UH,ASDA,Health & Housing,Clothing & Uniforms,24/02/2016,bpc003839,-8
Lancaster City Council,30UH,ATG Access,Regeneration and Planning,R & M - Sea & River / Promenade,07/03/2016,npc001114,1870
Lancaster City Council,30UH,Atkinson & Co,Health & Housing,Materials For Resale,01/02/2016,bpc003773,128.8
Lancaster City Council,30UH,Atkinson & Co,Health & Housing,Materials For Resale,01/02/2016,bpc003778,105.9
Lancaster City Council,30UH,Atkinson & Co,Health & Housing,Materials For Resale,29/02/2016,bpc003863,174.8
Lancaster City Council,30UH,Atkinson & Co,Health & Housing,Equipment and Tools - General,29/02/2016,bpc003867,92.4
Lancaster City Council,30UH,Atkinson & Co,Health & Housing,Materials For Resale,29/02/2016,bpc003867,157.2
Lancaster City Council,30UH,Atkinson & Co,Health & Housing,R & M - Buildings,29/02/2016,bpc003872,245.1
Lancaster City Council,30UH,Atkinson & Co,Environmental Services,Materials For Resale,02/03/2016,32579,483.77
Lancaster City Council,30UH,B and M,Health & Housing,Equipment and Tools - General,11/03/2016,bpc003906,9.98
Lancaster City Council,30UH,B and M,Environmental Services,Hospitality,05/01/2016,31869,14.54
Lancaster City Council,30UH,B and M,Environmental Services,Hospitality,05/01/2016,31870,3.32
Lancaster City Council,30UH,B and M,Health & Housing,Services - General,18/01/2016,bpc003736,5.03
Lancaster City Council,30UH,B and M,Environmental Services,Equipment and Tools - General,11/03/2016,32742,4.99
Lancaster City Council,30UH,B and M,Environmental Services,Hospitality,16/02/2016,32390,1.78
Lancaster City Council,30UH,B and M,Environmental Services,Office Equipment,16/02/2016,32391,0.82
Lancaster City Council,30UH,Baker Ross,Health & Housing,Equipment and Tools - General,08/03/2016,bpc003902,85.86
Lancaster City Council,30UH,Battery Force,Health & Housing,Equipment and Tools - General,29/02/2016,bpc003873,98.01
Lancaster City Council,30UH,Bay Travel,Health & Housing,Use Of Public Tpt - Officers,11/03/2016,spc001494,143.29
Lancaster City Council,30UH,Bay Vets Ltd,Environmental Services,Services - Vets,25/01/2016,32078,30.81
Lancaster City Council,30UH,Best4Systems,Resources,Office Equipment,15/01/2016,rpc000077,54
Lancaster City Council,30UH,Best4Systems,Resources,Office Equipment,17/02/2016,rpc000079,54
Lancaster City Council,30UH,Best4Systems ,Resources,Office Equipment,08/01/2016,rpc000076,108
Lancaster City Council,30UH,Blackpool Pleasure Beach,Health & Housing,Services - General,22/02/2016,bpc003833,207.08
Lancaster City Council,30UH,Blackpool Zoo,Health & Housing,Services - General,26/02/2016,bpc003843,625
Lancaster City Council,30UH,Blacks.co.uk,Environmental Services,Clothing & Uniforms,29/02/2016,32509,422.5
Lancaster City Council,30UH,BLT Direct,Resources,R & M - Buildings,01/02/2016,ppc000425,354.36
Lancaster City Council,30UH,BLT Direct,Resources,R & M - Buildings,08/03/2016,ppc000449,97.12
Lancaster City Council,30UH,BLT Direct,Resources,R & M - Buildings,08/03/2016,ppc000450,24.28
Lancaster City Council,30UH,BOC Gases,Health & Housing,Other Fixed Plant,23/03/2016,bpc003962,208.95
Lancaster City Council,30UH,Booker,Environmental Services,Materials - General,18/03/2016,32829,11.92
Lancaster City Council,30UH,Booker,Environmental Services,Materials For Resale,11/01/2016,31927,259.48
Lancaster City Council,30UH,Booker,Environmental Services,Materials For Resale,14/01/2016,31974,215.83
Lancaster City Council,30UH,Booker,Environmental Services,Materials For Resale,09/02/2016,32319,788.8
Lancaster City Council,30UH,Booker,Environmental Services,Materials For Resale,24/02/2016,32466,485.41
Lancaster City Council,30UH,Booker,Environmental Services,Materials For Resale,18/03/2016,32829,425.56
Lancaster City Council,30UH,Booker,Health & Housing,Services - General,24/03/2016,bpc003970,79.55
Lancaster City Council,30UH,Booker,Regeneration and Planning,Bar Supplies,16/02/2016,npc001066,40.48
Lancaster City Council,30UH,Booker,Regeneration and Planning,Bar Supplies,09/03/2016,npc001098,51.95
Lancaster City Council,30UH,Booker,Regeneration and Planning,Bar Supplies,09/03/2016,npc001099,136.33
Lancaster City Council,30UH,Booker,Health & Housing,Equipment and Tools - General,18/02/2016,bpc003828,5.49
Lancaster City Council,30UH,Booker,Health & Housing,Equipment and Tools - General,18/02/2016,bpc003830,56.98
Lancaster City Council,30UH,Booker,Health & Housing,Equipment and Tools - General,18/02/2016,bpc003832,33.99
Lancaster City Council,30UH,Booker,Health & Housing,Materials - General,23/01/2016,bpc003740,85.83
Lancaster City Council,30UH,Booker,Health & Housing,Materials - General,23/01/2016,bpc003741,-6.9
Lancaster City Council,30UH,Booker,Health & Housing,Materials - General,17/03/2016,bpc003910,39.99
Lancaster City Council,30UH,Booker,Health & Housing,Materials For Resale,23/01/2016,bpc003744,208.59
Lancaster City Council,30UH,Booker,Health & Housing,Materials For Resale,24/02/2016,bpc003837,97.82
Lancaster City Council,30UH,Booker,Health & Housing,Materials For Resale,17/03/2016,bpc003917,120.81
Lancaster City Council,30UH,Booker,Health & Housing,Materials For Resale,17/03/2016,bpc003920,8.19
Lancaster City Council,30UH,Booker,Health & Housing,Materials For Resale,21/03/2016,bpc003934,41.94
Lancaster City Council,30UH,Booker,Health & Housing,Materials For Resale,21/03/2016,bpc003935,32.18
Lancaster City Council,30UH,Booker,Health & Housing,Materials For Resale,28/01/2016,bpc003750,182.94
Lancaster City Council,30UH,Booker,Health & Housing,Materials For Resale,28/01/2016,bpc003752,14.29
Lancaster City Council,30UH,Booker,Health & Housing,Materials For Resale,28/01/2016,bpc003753,96.35
Lancaster City Council,30UH,Booker,Health & Housing,Materials For Resale,30/01/2016,bpc003765,75.6
Lancaster City Council,30UH,Booker,Health & Housing,Materials For Resale,09/02/2016,bpc003814,149.84
Lancaster City Council,30UH,Booker,Health & Housing,Materials For Resale,18/02/2016,bpc003828,132.48
Lancaster City Council,30UH,Booker,Health & Housing,Materials For Resale,18/02/2016,bpc003830,132.31
Lancaster City Council,30UH,Booker,Health & Housing,Materials For Resale,01/03/2016,bpc003875,372.9
Lancaster City Council,30UH,Booker,Health & Housing,Materials For Resale,04/03/2016,bpc003891,129.47
Lancaster City Council,30UH,Booker,Health & Housing,Materials For Resale,17/03/2016,bpc003922,96.28
Lancaster City Council,30UH,Booker,Health & Housing,Materials For Resale,23/03/2016,bpc003955,205.8
Lancaster City Council,30UH,Booker,Health & Housing,Materials For Resale,08/02/2016,bpc003813,89.88
Lancaster City Council,30UH,Booker,Health & Housing,Materials For Resale,05/02/2016,bpc003812,130.78
Lancaster City Council,30UH,Booker,Health & Housing,Materials For Resale,11/03/2016,bpc003905,106.63
Lancaster City Council,30UH,Booker,Health & Housing,Materials For Resale,16/01/2016,bpc003734,111.29
Lancaster City Council,30UH,Booker,Regeneration and Planning,Bar Supplies,27/03/2016,npc001121,142.14
Lancaster City Council,30UH,Booker,Health & Housing,Materials For Resale,28/01/2016,bpc003756,225.57
Lancaster City Council,30UH,Booths,Regeneration and Planning,Exhibitions & Events,01/02/2016,npc001039,25.26
Lancaster City Council,30UH,Booths,Regeneration and Planning,Exhibitions & Events,01/02/2016,npc001040,5.5
Lancaster City Council,30UH,Booths,Regeneration and Planning,Other Cleaning,01/02/2016,npc001041,1.67
Lancaster City Council,30UH,Booths,Regeneration and Planning,R & M - Buildings,18/03/2016,npc001113,1.25
Lancaster City Council,30UH,Bowmonk,Environmental Services,Other Fixed Plant,05/01/2016,31874,65.83
Lancaster City Council,30UH,Bradley Environmental,Environmental Services,Service Training Budget,03/03/2016,32636,885.24
Lancaster City Council,30UH,British Gas,Environmental Services,Electricity,14/01/2016,31980,675.25
Lancaster City Council,30UH,British Gymnastics,Health & Housing,Materials For Resale,23/03/2016,bpc003942,322.03
Lancaster City Council,30UH,British Telecommunications plc,Health & Housing,Telephones,01/02/2016,bpc003785,94.29
Lancaster City Council,30UH,BritishTelecommunications plc,Health & Housing,Telephones,29/02/2016,bpc003866,82.36
Lancaster City Council,30UH,Broadacre lesuire building,Health & Housing,Materials (Minor Adaptations),17/03/2016,spc001509,97.2
Lancaster City Council,30UH,Broadoak,Environmental Services,Materials - General,27/01/2016,32095,249.58
Lancaster City Council,30UH,Broadoak,Environmental Services,Playground Improvements,09/03/2016,32700,297
Lancaster City Council,30UH,Broadoak,Environmental Services,Playground Improvements,11/03/2016,32739,318.6
Lancaster City Council,30UH,Broadoak,Environmental Services,Forestry Commission Works,22/03/2016,32865,86.67
Lancaster City Council,30UH,Broadoak,Environmental Services,Grounds Maintenance - Other,22/03/2016,32865,620
Lancaster City Council,30UH,Broadoak,Health & Housing,Materials (Minor Adaptations),17/03/2016,spc001510,54.75
Lancaster City Council,30UH,Brownfield Risk Assessment,Health & Housing,Equipment and Tools - General,26/01/2016,spc001381,10
Lancaster City Council,30UH,Bryan Hoggarth Ltd,Environmental Services,Grounds Maintenance - Other,22/03/2016,32867,372.4
Lancaster City Council,30UH,BT,Regeneration and Planning,Telephones,11/01/2016,npc001016,88.5
Lancaster City Council,30UH,BT,Regeneration and Planning,Telephones,16/02/2016,npc001064,271.68
Lancaster City Council,30UH,BT,Resources,Equipment Funded by Reserves,01/02/2016,jpc000638,472.97
Lancaster City Council,30UH,BT,Resources,Office Equipment,01/02/2016,jpc000640,103.42
Lancaster City Council,30UH,BT,Resources,Purchase Of Equipment,01/02/2016,jpc000639,644.52
Lancaster City Council,30UH,Bullough`s Londis,Regeneration and Planning,AONB Executive Support,16/03/2016,npc001108,21.52
Lancaster City Council,30UH,Burnley Borough Council,Regeneration and Planning,Marketing,04/01/2016,npc001001,160
Lancaster City Council,30UH,Burnley Borough Council,Regeneration and Planning,Marketing,18/02/2016,npc001068,1843
Lancaster City Council,30UH,Burnley Borough Council,Regeneration and Planning,Marketing,18/02/2016,npc001069,240
Lancaster City Council,30UH,Burnley Borough Council,Regeneration and Planning,Marketing,30/03/2016,npc001133,80
Lancaster City Council,30UH,Burnley Borough Council,Regeneration and Planning,Marketing,30/03/2016,npc001134,80
Lancaster City Council,30UH,Burnley Borough Council,Resources,Miscellaneous Advertising,23/03/2016,ppc000460,1030
Lancaster City Council,30UH,Burnley Borough Council,Health & Housing,Services - General,23/03/2016,bpc003969,1000
Lancaster City Council,30UH,Burnley Borough Council,Regeneration and Planning,Marketing,19/01/2016,npc001025,367
Lancaster City Council,30UH,C J Papers,Regeneration and Planning,Printing & Stationery,21/01/2016,32058,6.4
Lancaster City Council,30UH,C T Hayton Ltd,Environmental Services,Equipment and Tools - General,11/03/2016,32743,149.19
Lancaster City Council,30UH,Central Source LTD,Health & Housing,Equipment and Tools - General,17/03/2016,bpc003925,39.9
Lancaster City Council,30UH,Chartered Institute of Environ,Health & Housing,Service Training Budget,20/01/2016,spc001359,558
Lancaster City Council,30UH,Chrysalis Promotion,Health & Housing,Service Training Budget,05/03/2016,bpc003982,99.17
Lancaster City Council,30UH,Chubb Fire and Security Ltd,Environmental Services,Contract Maintenance,22/03/2016,32869,605.41
Lancaster City Council,30UH,Cipfa,Resources,Professional Fees Etc,14/01/2016,fpc000152,310
Lancaster City Council,30UH,Cipfa,Resources,Professional Fees Etc,14/01/2016,fpc000153,310
Lancaster City Council,30UH,Cipfa,Resources,Professional Fees Etc,14/01/2016,fpc000155,310
Lancaster City Council,30UH,CL:AIRE,Health & Housing,Equipment and Tools - General,23/02/2016,spc001441,105
Lancaster City Council,30UH,Classic Gifts and Engravings,Regeneration and Planning,R & M - General,10/02/2016,npc001059,37.5
Lancaster City Council,30UH,Clean Sweep Hire Ltd,Health & Housing,Cleaning Materials,01/02/2016,bpc003776,181.04
Lancaster City Council,30UH,Clubbercise,Health & Housing,Service Training Budget,05/03/2016,bpc003985,178.32
Lancaster City Council,30UH,Co op,Environmental Services,Materials - General,10/03/2016,32729,6
Lancaster City Council,30UH,Co op,Environmental Services,Subsistence,15/01/2016,31989,12.48
Lancaster City Council,30UH,Co op,Health & Housing,Home Improvement Works,18/01/2016,spc001348,49
Lancaster City Council,30UH,Coles Hardware,Health & Housing,Materials (Minor Adaptations),25/01/2016,spc001379,91.67
Lancaster City Council,30UH,companies house,Resources,Services - General,21/03/2016,fpc000166,1
Lancaster City Council,30UH,Complete Care Shop,Health & Housing,Home Improvement Works,01/03/2016,spc001453,66.4
Lancaster City Council,30UH,Computerstar,Health & Housing,Equipment and Tools - General,29/03/2016,bpc003977,4.15
Lancaster City Council,30UH,CONTACT NATURAL GAS LTD,Health & Housing,Electricity,05/01/2016,hpc000310,28.57
Lancaster City Council,30UH,Cool Vehicle Solurions Limited,Health & Housing,R & M - Buildings,29/02/2016,bpc003865,177.84
Lancaster City Council,30UH,Cordee,Regeneration and Planning,Materials For Resale,14/01/2016,31979,54.52
Lancaster City Council,30UH,Cordee,Regeneration and Planning,Materials For Resale,02/03/2016,32607,77.87
Lancaster City Council,30UH,Cornthwaite Farm Machinery,Environmental Services,Equipment and Tools - General,03/02/2016,32276,145.78
Lancaster City Council,30UH,Cornwall Airport,Health & Housing,Use Of Public Tpt - Officers,12/01/2016,spc001332,15
Lancaster City Council,30UH,Correct Flow,Health & Housing,Chemicals,05/02/2016,bpc003810,499.19
Lancaster City Council,30UH,Correct Flow,Health & Housing,Other Fixed Plant,05/02/2016,bpc003811,198.61
Lancaster City Council,30UH,Countrystyle Meats Farmshop,Environmental Services,Materials For Resale,06/01/2016,31881,335.25
Lancaster City Council,30UH,Countrystyle Meats Farmshop,Environmental Services,Materials For Resale,09/02/2016,32318,349.86
Lancaster City Council,30UH,Countrystyle Meats Farmshop,Environmental Services,Materials For Resale,03/03/2016,32618,294.58
Lancaster City Council,30UH,County Hotel Truro,Health & Housing,Equipment and Tools - General,11/01/2016,spc001330,597.52
Lancaster City Council,30UH,CPC,Regeneration and Planning,Equipment and Tools - General,07/01/2016,npc001012,49.23
Lancaster City Council,30UH,CPC,Regeneration and Planning,Miscellaneous Expenditure,17/03/2016,npc001110,184.12
Lancaster City Council,30UH,CPC,Health & Housing,Equipment and Tools - General,05/03/2016,bpc003988,12
Lancaster City Council,30UH,createsend.com,Regeneration and Planning,Marketing,15/02/2016,npc001063,19.71
Lancaster City Council,30UH,CT Hayton Ltd,Regeneration and Planning,Equipment and Tools - General,08/01/2016,npc001013,47
Lancaster City Council,30UH,Cumbria Green Fuels,Regeneration and Planning,Misc. Energy Charges,04/01/2016,npc001009,256.35
Lancaster City Council,30UH,Currys,Health & Housing,Community Development,10/03/2016,hpc000363,208.32
Lancaster City Council,30UH,Currys,Health & Housing,Equipment and Tools - General,25/02/2016,bpc003840,41.66
Lancaster City Council,30UH,Currys,Environmental Services,Equipment and Tools - General,11/03/2016,32751,133.33
Lancaster City Council,30UH,Currys,Environmental Services,Office Equipment,04/03/2016,32643,89.99
Lancaster City Council,30UH,Currys,Health & Housing,R & M - Environmental Works,05/01/2016,hpc000318,183.32
Lancaster City Council,30UH,Currys,Health & Housing,R & M - Environmental Works,05/01/2016,hpc000320,-91.66
Lancaster City Council,30UH,Dale Sauna,Health & Housing,R & M - Buildings,05/03/2016,bpc003894,77.12
Lancaster City Council,30UH,David WiIllan,Environmental Services,Materials For Resale,06/01/2016,31884,375.87
Lancaster City Council,30UH,David Willan,Environmental Services,Materials For Resale,03/02/2016,32275,625.54
Lancaster City Council,30UH,David Willan,Environmental Services,Materials For Resale,09/03/2016,32704,687.37
Lancaster City Council,30UH,Davies Sports (Findel ED Ltd),Health & Housing,Equipment and Tools - General,29/02/2016,bpc003862,129.8
Lancaster City Council,30UH,debenhams,Health & Housing,Clothing & Uniforms,24/02/2016,bpc003838,-50
Lancaster City Council,30UH,debenhams ,Health & Housing,Clothing & Uniforms,30/01/2016,bpc003762,50
Lancaster City Council,30UH,Deltawaite,Environmental Services,Clothing & Uniforms,21/01/2016,32047,18.95
Lancaster City Council,30UH,Dennis Barnfield,Regeneration and Planning,Clothing & Uniforms,24/02/2016,npc001072,22
Lancaster City Council,30UH,Dennis Barnfield,Regeneration and Planning,Equipment and Tools - General,24/02/2016,npc001072,103.09
Lancaster City Council,30UH,Dennis Barnfield,Regeneration and Planning,Equipment and Tools - General,24/02/2016,npc001073,33.97
Lancaster City Council,30UH,Deposit photos,Regeneration and Planning,Marketing,02/03/2016,npc001091,312.92
Lancaster City Council,30UH,Digi Spot,Resources,Office Equipment,11/02/2016,ppc000434,11.29
Lancaster City Council,30UH,Direct Linen Textiles Ltd,Environmental Services,Exhibitions & Events,11/03/2016,32748,494.6
Lancaster City Council,30UH,Direct Parts T/A Gym Fit,Health & Housing,Equipment and Tools - General,23/03/2016,bpc003961,205
Lancaster City Council,30UH,Disclosure Scotland,Governance,C. R. B. Costs,28/01/2016,lpc000333,25
Lancaster City Council,30UH,Disclosure Scotland,Governance,C. R. B. Costs,02/02/2016,lpc000337,25
Lancaster City Council,30UH,Disclosure Scotland,Governance,C. R. B. Costs,03/03/2016,lpc000349,25
Lancaster City Council,30UH,Disclosure Scotland,Resources,Infrastructure - Update & Maintenance,02/03/2016,jpc000675,25
Lancaster City Council,30UH,Diversified,Regeneration and Planning,Marketing,05/02/2016,npc001051,360
Lancaster City Council,30UH,Doggie Solutions Ltd,Environmental Services,Equipment and Tools - General,22/02/2016,32432,95.24
Lancaster City Council,30UH,Dorrigo,Regeneration and Planning,Materials For Resale,02/02/2016,32230,365.3
Lancaster City Council,30UH,Dyno-Start,Health & Housing,Equipment and Tools - General,18/01/2016,bpc003735,367.76
Lancaster City Council,30UH,Dyno-Start,Regeneration and Planning,Repair & Mtce Of Vehicles,10/02/2016,npc001061,25.75
Lancaster City Council,30UH,Early Learning Centre,Health & Housing,Equipment and Tools - General,23/03/2016,bpc003967,24.62
Lancaster City Council,30UH,East Midlands Train,Governance,Use Of Public Tpt - Officers,29/02/2016,lpc000348,72
Lancaster City Council,30UH,EB Rough Runner,Health & Housing,Miscellaneous Licences,05/03/2016,bpc003895,92.3
Lancaster City Council,30UH,E-bay - Paypal,Environmental Services,Printing & Stationery,16/02/2016,32392,146.13
Lancaster City Council,30UH,EBuyer,Health & Housing,IT Consumables,22/02/2016,spc001435,6.83
Lancaster City Council,30UH,Ebuyer,Health & Housing,Equipment and Tools - General,20/01/2016,spc001360,13.81
Lancaster City Council,30UH,EBuyer,Health & Housing,Equipment and Tools - General,10/03/2016,spc001482,6.58
Lancaster City Council,30UH,EBuyer,Health & Housing,IT Consumables,29/01/2016,spc001389,10.47
Lancaster City Council,30UH,EBuyer,Health & Housing,IT Consumables,22/02/2016,spc001436,6.83
Lancaster City Council,30UH,ecotricity,Regeneration and Planning,Electricity,11/01/2016,npc001017,44.5
Lancaster City Council,30UH,ecotricity,Regeneration and Planning,Electricity,21/03/2016,npc001115,39.14
Lancaster City Council,30UH,Ecotricity,Regeneration and Planning,Electricity,09/02/2016,npc001054,40.23
Lancaster City Council,30UH,EKM Powershop,Regeneration and Planning,Software Purchase\Licences,05/01/2016,31838,29.98
Lancaster City Council,30UH,EKM Powershop,Regeneration and Planning,Software Purchase\Licences,02/02/2016,32243,29.98
Lancaster City Council,30UH,EKM Powershop,Regeneration and Planning,Software Purchase\Licences,04/03/2016,32654,29.98
Lancaster City Council,30UH,EKM Powershop,Regeneration and Planning,Software Purchase\Licences,31/03/2016,33010,29.98
Lancaster City Council,30UH,Emergency Planning Society,Health & Housing,Service Training Budget,07/01/2016,spc001325,120
Lancaster City Council,30UH,English Lakes,Regeneration and Planning,Bar Supplies,09/02/2016,npc001053,29.96
Lancaster City Council,30UH,English Lakes,Regeneration and Planning,Bar Supplies,16/02/2016,npc001065,14.98
Lancaster City Council,30UH,Ensign Flag  Co. Ltd,Resources,Fixtures & Fittings - General,30/03/2016,ppc000462,312.5
Lancaster City Council,30UH,EON Energy,Health & Housing,Home Improvement Works,19/01/2016,spc001353,49
Lancaster City Council,30UH,EON Energy,Health & Housing,Home Improvement Works,19/01/2016,spc001355,49
Lancaster City Council,30UH,EON Energy,Health & Housing,Home Improvement Works,19/01/2016,spc001356,49
Lancaster City Council,30UH,Eorolines,Health & Housing,Homelessness Priority Need Order,24/02/2016,spc001444,61
Lancaster City Council,30UH,Equine Superstore,Regeneration and Planning,Clothing & Uniforms,01/03/2016,npc001079,74.99
Lancaster City Council,30UH,EVAQ8,Health & Housing,Corporate Safety,23/03/2016,bpc003940,139.3
Lancaster City Council,30UH,Event Brite,Health & Housing,Corporate Safety,22/01/2016,spc001372,120
Lancaster City Council,30UH,Eventbrite,Health & Housing,Service Training Budget,06/01/2016,spc001322,411
Lancaster City Council,30UH,Eventbrite,Health & Housing,Service Training Budget,18/03/2016,spc001512,281.5
Lancaster City Council,30UH,Expro,Health & Housing,IT Consumables,10/02/2016,spc001414,3.29
Lancaster City Council,30UH,Facebook,Regeneration and Planning,Marketing,28/01/2016,npc001031,266.52
Lancaster City Council,30UH,Facebook,Regeneration and Planning,Marketing,01/02/2016,npc001033,36.16
Lancaster City Council,30UH,Facebook,Regeneration and Planning,Marketing,01/02/2016,npc001034,0.45
Lancaster City Council,30UH,Facebook,Regeneration and Planning,Marketing,29/02/2016,npc001076,400
Lancaster City Council,30UH,Facebook,Regeneration and Planning,Marketing,07/03/2016,npc001097,90.71
Lancaster City Council,30UH,Facebook,Health & Housing,Miscellaneous Advertising,04/01/2016,bpc003714,20.03
Lancaster City Council,30UH,Facebook,Health & Housing,Miscellaneous Advertising,04/01/2016,bpc003715,40
Lancaster City Council,30UH,Facebook,Health & Housing,Miscellaneous Advertising,02/02/2016,bpc003791,39.97
Lancaster City Council,30UH,Facebook,Regeneration and Planning,Miscellaneous Advertising,05/01/2016,31836,20
Lancaster City Council,30UH,Facebook,Regeneration and Planning,Miscellaneous Advertising,05/01/2016,31837,40.06
Lancaster City Council,30UH,Facebook,Regeneration and Planning,Miscellaneous Advertising,05/01/2016,31839,37.85
Lancaster City Council,30UH,Facebook,Regeneration and Planning,Miscellaneous Advertising,04/01/2016,npc001002,110.16
Lancaster City Council,30UH,Facebook,Regeneration and Planning,Miscellaneous Advertising,04/01/2016,npc001003,119.02
Lancaster City Council,30UH,Facebook,Regeneration and Planning,Miscellaneous Advertising,02/03/2016,npc001090,82.83
Lancaster City Council,30UH,Fargro Ltd,Environmental Services,Materials - General,22/03/2016,32866,88.78
Lancaster City Council,30UH,Fast Key Services Ltd,Resources,Fixtures & Fittings - General,18/02/2016,ppc000440,5.62
Lancaster City Council,30UH,Fayre and square ,Regeneration and Planning,Catering Provisions,27/03/2016,npc001122,33.31
Lancaster City Council,30UH,Fiddler`s Lancashire Crisps,Environmental Services,Materials For Resale,09/03/2016,32705,57.9
Lancaster City Council,30UH,Fiddler`s Lancashire Crisps,Environmental Services,Materials For Resale,03/02/2016,32269,57.9
Lancaster City Council,30UH,First Trains,Health & Housing,Use Of Public Tpt - Officers,01/02/2016,bpc003783,16.3
Lancaster City Council,30UH,First TransPennine Express,Resources,Infrastructure - Update & Maintenance,12/01/2016,jpc000621,23.7
Lancaster City Council,30UH,First TransPennine Express,Resources,Infrastructure - Update & Maintenance,12/01/2016,jpc000622,-23.7
Lancaster City Council,30UH,FirstAid4Less,Resources,Equipment and Tools - General,03/02/2016,ppc000429,30.85
Lancaster City Council,30UH,FirstAid4Less,Health & Housing,First Aid Equipment,17/02/2016,bpc003826,113
Lancaster City Council,30UH,FirstAid4Less,Environmental Services,First Aid Equipment,04/03/2016,32642,74
Lancaster City Council,30UH,Food Safety Direct,Health & Housing,Equipment and Tools - General,19/01/2016,spc001354,53.1
Lancaster City Council,30UH,Foucus Training,Health & Housing,Service Training Budget,02/02/2016,bpc003798,31.67
Lancaster City Council,30UH,FR Jones and Son,Environmental Services,Clothing & Uniforms,01/03/2016,32538,680
Lancaster City Council,30UH,FR Jones and Son,Environmental Services,Equipment and Tools - General,24/02/2016,32465,622.15
Lancaster City Council,30UH,FR Jones and Son,Environmental Services,Grounds Maintenance - Other,24/02/2016,32465,184.24
Lancaster City Council,30UH,Gagdgets Galore,Health & Housing,Services - General,05/03/2016,bpc003983,126.76
Lancaster City Council,30UH,Gak,Environmental Services,Exhibitions & Events,26/01/2016,32082,232.5
Lancaster City Council,30UH,Garla Tents,Regeneration and Planning,Miscellaneous Expenditure,17/03/2016,npc001109,596.44
Lancaster City Council,30UH,George Speight and Sons Ltd,Environmental Services,Materials - General,15/01/2016,31993,51.44
Lancaster City Council,30UH,George Speight and Sons Ltd,Environmental Services,Materials For Resale,15/01/2016,31993,404.46
Lancaster City Council,30UH,GFI Software,Resources,Infrastructure - Update & Maintenance,02/03/2016,jpc000677,3702.6
Lancaster City Council,30UH,Glasdon UK Ltd,Health & Housing,Cleaning Materials,29/02/2016,bpc003860,179.46
Lancaster City Council,30UH,gov tv ltd,Health & Housing,Miscellaneous Licences,21/03/2016,bpc003938,395
Lancaster City Council,30UH,Gym-Fit,Health & Housing,Equipment and Tools - General,03/02/2016,bpc003802,33.5
Lancaster City Council,30UH,Gym-Fit,Health & Housing,Equipment and Tools - General,23/03/2016,bpc003948,591.9
Lancaster City Council,30UH,Hala Pet Stores,Environmental Services,Materials - General,12/01/2016,31942,97.94
Lancaster City Council,30UH,Hala Pet Stores,Environmental Services,Materials - General,09/02/2016,32320,142.75
Lancaster City Council,30UH,Hala Pet Stores,Environmental Services,Materials - General,09/03/2016,32701,54.36
Lancaster City Council,30UH,Handy Home & Garden,Health & Housing,Equipment and Tools - General,21/01/2016,spc001363,6.32
Lancaster City Council,30UH,Harrison`s Packaging Ltd,Environmental Services,Materials - General,09/03/2016,32709,117.72
Lancaster City Council,30UH,Hartley Hire,Environmental Services,Grounds Maintenance - Other,22/03/2016,32868,-94.05
Lancaster City Council,30UH,Hartley Hire,Environmental Services,Grounds Maintenance - Other,25/02/2016,32481,523.2
Lancaster City Council,30UH,HCS,Health & Housing,Cleansing Equipment,28/01/2016,bpc003754,75.32
Lancaster City Council,30UH,HCS,Health & Housing,Cleansing Equipment,01/03/2016,bpc003876,82.6
Lancaster City Council,30UH,HCS,Health & Housing,Cleansing Equipment,17/03/2016,bpc003913,128.09
Lancaster City Council,30UH,HCS,Health & Housing,Cleansing Equipment,26/03/2016,bpc003975,59.23
Lancaster City Council,30UH,HCS,Environmental Services,Equipment and Tools - General,11/02/2016,32366,8.68
Lancaster City Council,30UH,HCS,Environmental Services,Office Equipment,25/02/2016,32485,155.4
Lancaster City Council,30UH,HCS,Environmental Services,Services - Trade Refuse,25/02/2016,32484,197.1
Lancaster City Council,30UH,HELPING HANDS,Environmental Services,Materials - General,04/02/2016,32288,752.5
Lancaster City Council,30UH,HI TECH SECURITY SYSTEMS,Environmental Services,R & M - Buildings,10/02/2016,32346,290.7
Lancaster City Council,30UH,HMCTS,Governance,Legal & Court Costs,29/01/2016,lpc000334,410
Lancaster City Council,30UH,HobbyCraft,Environmental Services,Equipment and Tools - General,13/01/2016,31963,16.25
Lancaster City Council,30UH,Holiday Inn,Regeneration and Planning,R & M - Sea & River / Promenade,05/02/2016,npc001046,175
Lancaster City Council,30UH,Holiday Inn,Health & Housing,Service Training Budget,04/03/2016,spc001475,60.21
Lancaster City Council,30UH,Holiday Inn,Resources,Infrastructure - Update & Maintenance,18/03/2016,jpc000683,80.83
Lancaster City Council,30UH,Homebase,Environmental Services,Equipment and Tools - General,09/01/2016,31919,18.2
Lancaster City Council,30UH,Homebase,Environmental Services,Equipment and Tools - General,02/02/2016,32236,18.2
Lancaster City Council,30UH,Homebase,Environmental Services,Materials - General,02/02/2016,32255,6.33
Lancaster City Council,30UH,Homes Direct 365,Environmental Services,Exhibitions & Events,10/02/2016,32337,183.31
Lancaster City Council,30UH,Homes Direct 365,Environmental Services,Exhibitions & Events,25/02/2016,32483,999.99
Lancaster City Council,30UH,HOOK AND LOOP,Environmental Services,Materials - General,19/02/2016,32415,8.29
Lancaster City Council,30UH,Hootsuite,Regeneration and Planning,Internet Provision,04/03/2016,32653,100.66
Lancaster City Council,30UH,Hootsuite,Regeneration and Planning,Marketing,04/01/2016,npc001004,4.89
Lancaster City Council,30UH,Hootsuite,Regeneration and Planning,Marketing,01/02/2016,npc001035,4.98
Lancaster City Council,30UH,Hootsuite,Regeneration and Planning,Marketing,03/03/2016,npc001094,5.23
Lancaster City Council,30UH,Horseactive,Regeneration and Planning,Equipment and Tools - General,29/03/2016,npc001126,17.2
Lancaster City Council,30UH,House of Flags,Environmental Services,Hospitality,17/03/2016,32778,78
Lancaster City Council,30UH,Howdens Joinery Company,Health & Housing,Materials (Minor Adaptations),29/03/2016,spc001520,55
Lancaster City Council,30UH,Hydro-Actif,Health & Housing,Equipment and Tools - General,28/01/2016,bpc003755,140.83
Lancaster City Council,30UH,Hygiene Cleaning Supplies,Resources,Cleaning Materials,17/02/2016,ppc000437,130.2
Lancaster City Council,30UH,Hygiene Cleaning Supplies,Resources,Cleaning Materials,23/02/2016,ppc000441,44.41
Lancaster City Council,30UH,Hygiene Cleaning Supplies Ltd,Resources,Cleaning Materials,20/01/2016,ppc000419,453.8
Lancaster City Council,30UH,Hygiene Cleaning Supplies Ltd,Resources,Cleaning Materials,01/02/2016,ppc000428,102.14
Lancaster City Council,30UH,Hygiene Cleaning Supplies Ltd,Resources,Cleaning Materials,01/03/2016,ppc000444,75.9
Lancaster City Council,30UH,Hygiene Cleaning Supplies Ltd,Resources,Cleaning Materials,22/03/2016,ppc000457,469
Lancaster City Council,30UH,Hygiene Cleaning Supplies Ltd,Environmental Services,Office Equipment,07/02/2016,32308,26.65
Lancaster City Council,30UH,Ibis,Resources,Service Training Budget,14/01/2016,fpc000154,67.92
Lancaster City Council,30UH,Ibis,Health & Housing,Service Training Budget,11/02/2016,spc001422,108.34
Lancaster City Council,30UH,Ibis,Health & Housing,Service Training Budget,11/02/2016,spc001423,98.34
Lancaster City Council,30UH,Ibis,Health & Housing,Service Training Budget,11/02/2016,spc001424,115
Lancaster City Council,30UH,Ibis,Health & Housing,Service Training Budget,11/02/2016,spc001425,115
Lancaster City Council,30UH,Impact Cases Light & Sound,Resources,Office Equipment,11/02/2016,ppc000433,27.32
Lancaster City Council,30UH,In Touch Ltd,Environmental Services,Office Equipment,03/02/2016,32277,225
Lancaster City Council,30UH,Ink N Toner UK,Health & Housing,Printing & Stationery,17/03/2016,bpc003926,117.07
Lancaster City Council,30UH,INSTANTA SPARES,Environmental Services,Materials - General,03/03/2016,32640,110
Lancaster City Council,30UH,Instantprint,Regeneration and Planning,Printing & Stationery,30/03/2016,32967,90.33
Lancaster City Council,30UH,Instantprint,Health & Housing,Printing & Stationery,02/03/2016,bpc003882,58.32
Lancaster City Council,30UH,Instantprint,Regeneration and Planning,Marketing,05/02/2016,npc001047,31.16
Lancaster City Council,30UH,Instantprint,Regeneration and Planning,Marketing,05/02/2016,npc001048,81
Lancaster City Council,30UH,Instantprint,Regeneration and Planning,Marketing,10/02/2016,npc001060,38.16
Lancaster City Council,30UH,Instantprint,Regeneration and Planning,Marketing,02/03/2016,npc001083,81
Lancaster City Council,30UH,Instantprint,Regeneration and Planning,Marketing,30/03/2016,npc001130,48.16
Lancaster City Council,30UH,Instantprint,Regeneration and Planning,Marketing,30/03/2016,npc001131,118.33
Lancaster City Council,30UH,Instantprint,Regeneration and Planning,Marketing,31/03/2016,npc001138,38.16
Lancaster City Council,30UH,Instantprint,Regeneration and Planning,Marketing,31/03/2016,npc001139,107
Lancaster City Council,30UH,Instantprint,Regeneration and Planning,Marketing,31/03/2016,npc001140,78
Lancaster City Council,30UH,Instantprint,Regeneration and Planning,Marketing,31/03/2016,npc001141,85
Lancaster City Council,30UH,Instantprint,Regeneration and Planning,Marketing,31/03/2016,npc001142,94
Lancaster City Council,30UH,Instantprint,Regeneration and Planning,Printing & Stationery,04/03/2016,32650,66.99
Lancaster City Council,30UH,Instantprint,Regeneration and Planning,Printing & Stationery,04/03/2016,32651,22.99
Lancaster City Council,30UH,Instantprint,Regeneration and Planning,Printing & Stationery,04/03/2016,32652,80
Lancaster City Council,30UH,Instantprint,Regeneration and Planning,Printing & Stationery,31/03/2016,33008,156.67
Lancaster City Council,30UH,Instantprint,Health & Housing,Printing & Stationery,30/03/2016,bpc003989,105
Lancaster City Council,30UH,Instantprint,Resources,Office Equipment,01/03/2016,rpc000080,49.16
Lancaster City Council,30UH,IOSH,Environmental Services,Corporate Training Budget,10/02/2016,32347,115
Lancaster City Council,30UH,IOSH,Governance,Corporate Training Budget,22/03/2016,lpc000364,230
Lancaster City Council,30UH,IQL RLSS,Health & Housing,Service Training Budget,20/01/2016,bpc003738,41.75
Lancaster City Council,30UH,IQL UK,Health & Housing,Service Training Budget,20/01/2016,bpc003737,162
Lancaster City Council,30UH,i-sells.co.uk,Health & Housing,Home Improvement Works,01/03/2016,spc001452,1302.65
Lancaster City Council,30UH,Isle of Man Steam packet Compa,Regeneration and Planning,Sea-Cat Sales,14/01/2016,31978,96
Lancaster City Council,30UH,IZ Taxis,Health & Housing,Use Of Public Tpt - Officers,04/03/2016,bpc003892,15
Lancaster City Council,30UH,J L Group Ltd,Resources,Printing & Stationery,05/01/2016,ppc000418,340
Lancaster City Council,30UH,J P Lennard LTD,Health & Housing,Equipment and Tools - General,05/03/2016,bpc003984,123.1
Lancaster City Council,30UH,J. Atkinson and Co,Health & Housing,Materials For Resale,03/02/2016,bpc003804,192.6
Lancaster City Council,30UH,J. Atkinson and Co,Health & Housing,Materials For Resale,23/03/2016,bpc003943,289.9
Lancaster City Council,30UH,J. Atkinson and Co,Health & Housing,Materials For Resale,23/03/2016,bpc003960,190.8
Lancaster City Council,30UH,J. Atkinson and Co,Environmental Services,Materials For Resale,06/01/2016,31882,418.8
Lancaster City Council,30UH,Jacksons,Regeneration and Planning,R & M - General,07/03/2016,npc001112,11.45
Lancaster City Council,30UH,JamJar Print,Regeneration and Planning,Equipment and Tools - General,30/03/2016,npc001135,133.7
Lancaster City Council,30UH,JetGadgets,Health & Housing,Materials For Resale,01/03/2016,spc001448,10.62
Lancaster City Council,30UH,JHL Printer Spares,Resources,Infrastructure - Update & Maintenance,01/03/2016,jpc000669,21.5
Lancaster City Council,30UH,JL Group Ltd,Resources,Printing & Stationery,02/03/2016,ppc000446,340
Lancaster City Council,30UH,JMP,Environmental Services,Materials For Resale,06/01/2016,31880,282.29
Lancaster City Council,30UH,JMP,Environmental Services,Materials For Resale,03/02/2016,32271,385.03
Lancaster City Council,30UH,JMP,Environmental Services,Materials For Resale,09/03/2016,32703,199.05
Lancaster City Council,30UH,John Monaghan Ltd,Resources,Service Charges Recovered,18/03/2016,ppc000453,82.34
Lancaster City Council,30UH,Johnson Training Ltd,Health & Housing,Service Training Budget,01/02/2016,bpc003781,275
Lancaster City Council,30UH,Johnsons Cleaners,Environmental Services,Equipment and Tools - General,23/02/2016,32462,7.92
Lancaster City Council,30UH,Johnston Publishing Ltd,Resources,Miscellaneous Advertising,21/03/2016,fpc000163,275.66
Lancaster City Council,30UH,JP Lennard,Health & Housing,Equipment and Tools - General,03/01/2016,bpc003707,95.7
Lancaster City Council,30UH,JUST CABLE TIES,Environmental Services,Materials - General,08/01/2016,31910,36.83
Lancaster City Council,30UH,Just Projectors,Resources,Equipment and Tools - General,22/02/2016,jpc000662,213
Lancaster City Council,30UH,Kays Cards Ltd,Environmental Services,Equipment and Tools - General,05/01/2016,31871,34.41
Lancaster City Council,30UH,Kays Cards Ltd,Environmental Services,Equipment and Tools - General,19/01/2016,32018,19.5
Lancaster City Council,30UH,Kays Cards Ltd,Environmental Services,Equipment and Tools - General,24/03/2016,32934,28.25
Lancaster City Council,30UH,Kenable,Resources,Office Equipment,11/02/2016,ppc000435,3.6
Lancaster City Council,30UH,Key Metric,Resources,Infrastructure - Update & Maintenance,02/03/2016,jpc000676,319.34
Lancaster City Council,30UH,Keycraft,Environmental Services,Materials For Resale,09/02/2016,32317,200.82
Lancaster City Council,30UH,Keycraft,Environmental Services,Materials For Resale,12/01/2016,31943,469.44
Lancaster City Council,30UH,Killgerm Chemicals Ltd,Health & Housing,Materials - General,18/01/2016,spc001343,137.22
Lancaster City Council,30UH,King of Servers LTD,Resources,Infrastructure - Update & Maintenance,02/03/2016,jpc000674,5363
Lancaster City Council,30UH,Kirn Distribution Ltd T/A BSPl,Resources,Other Cleaning,02/03/2016,ppc000445,14.9
Lancaster City Council,30UH,Kitchener 2000 Limited,Environmental Services,Electricity,25/02/2016,32482,480.9
Lancaster City Council,30UH,Kite Packaging Ltd,Health & Housing,Equipment and Tools - General,21/01/2016,spc001362,15.85
Lancaster City Council,30UH,LakesideYMCA,Health & Housing,Services - General,01/02/2016,bpc003771,400
Lancaster City Council,30UH,Lancaster Brewery,Regeneration and Planning,Bar Supplies,28/02/2016,npc001074,45
Lancaster City Council,30UH,Lancaster Brewery,Environmental Services,Materials For Resale,03/02/2016,32273,20
Lancaster City Council,30UH,Lathams,Environmental Services,Materials For Resale,06/01/2016,31883,587.98
Lancaster City Council,30UH,Lathams,Environmental Services,Materials For Resale,03/02/2016,32272,769.79
Lancaster City Council,30UH,Lathams,Environmental Services,Materials For Resale,09/03/2016,32706,830.91
Lancaster City Council,30UH,LBS Worldwide Ltd,Environmental Services,Equipment and Tools - General,23/02/2016,32446,338.3
Lancaster City Council,30UH,LBS Worldwide Ltd,Environmental Services,Materials - General,23/02/2016,32446,92.25
Lancaster City Council,30UH,LCR Systems,Environmental Services,Printing & Stationery,06/01/2016,31887,144
Lancaster City Council,30UH,LED Lights CO uk,Health & Housing,Equipment and Tools - General,11/03/2016,spc001489,116.63
Lancaster City Council,30UH,LEDHUT,Health & Housing,Home Improvement Works,17/03/2016,spc001505,1235
Lancaster City Council,30UH,Lees Games,Health & Housing,Services - General,22/02/2016,bpc003834,25
Lancaster City Council,30UH,Lees Games,Health & Housing,Services - General,24/03/2016,bpc003971,25
Lancaster City Council,30UH,Les Mills Fitness UK Ltd,Health & Housing,Miscellaneous Licences,23/03/2016,bpc003963,342.39
Lancaster City Council,30UH,Lesar,Resources,Office Equipment,21/03/2016,rpc000082,56.5
Lancaster City Council,30UH,Lidl,Health & Housing,Materials For Resale,17/03/2016,bpc003930,6.82
Lancaster City Council,30UH,Lloyd Worrall,Resources,Fixtures & Fittings - General,05/01/2016,ppc000417,23.7
Lancaster City Council,30UH,Lloyd Worrall,Resources,Fixtures & Fittings - General,01/02/2016,ppc000426,23.7
Lancaster City Council,30UH,Lloyd Worrall,Resources,Fixtures & Fittings - General,17/02/2016,ppc000438,23.7
Lancaster City Council,30UH,Local Government Association,Governance,Corporate Training Budget,22/03/2016,lpc000366,250
Lancaster City Council,30UH,Local Government Association,Health & Housing,Service Training Budget,03/02/2016,spc001404,229
Lancaster City Council,30UH,LOCO2 ENERGY,Health & Housing,Electricity,02/02/2016,hpc000332,23.81
Lancaster City Council,30UH,London Pupae Supplies,Environmental Services,Materials - General,06/01/2016,31886,511.6
Lancaster City Council,30UH,London Pupae Supplies Ltd,Environmental Services,Materials - General,18/02/2016,32402,674.05
Lancaster City Council,30UH,London Underground,Health & Housing,Use Of Public Tpt - Officers,21/03/2016,bpc003933,12.1
Lancaster City Council,30UH,London Underground,Health & Housing,Use Of Public Tpt - Officers,11/03/2016,spc001493,12.1
Lancaster City Council,30UH,London Underground,Health & Housing,Use Of Public Tpt - Officers,11/03/2016,spc001496,4.9
Lancaster City Council,30UH,London Underground Ltd,Regeneration and Planning,Use Of Public Tpt - Officers,24/03/2016,32941,48.4
Lancaster City Council,30UH,LONGHORN,Environmental Services,R & M - Buildings,19/02/2016,32416,45
Lancaster City Council,30UH,Lothersdale hotel,Regeneration and Planning,Exhibitions & Events - Expenses,24/03/2016,npc001119,325
Lancaster City Council,30UH,LUL,Health & Housing,Use Of Public Tpt - Officers,04/03/2016,bpc003893,4.9
Lancaster City Council,30UH,Lyreco,Resources,Computer Consumables,22/02/2016,jpc000661,23.88
Lancaster City Council,30UH,Lyreco,Regeneration and Planning,Marketing,08/03/2016,32690,281.97
Lancaster City Council,30UH,Lyreco,Resources,Office Equipment,01/02/2016,fpc000159,24.59
Lancaster City Council,30UH,Lyreco,Resources,Printing & Stationery,21/03/2016,fpc000162,87.04
Lancaster City Council,30UH,Lyreco,Environmental Services,Printing & Stationery,29/01/2016,32121,189.74
Lancaster City Council,30UH,Lyreco,Governance,Printing & Stationery,05/01/2016,lpc000327,23.47
Lancaster City Council,30UH,Lyreco,Governance,Printing & Stationery,29/01/2016,lpc000335,45.23
Lancaster City Council,30UH,Lyreco,Governance,Printing & Stationery,04/02/2016,lpc000338,18.58
Lancaster City Council,30UH,Lyreco,Governance,Printing & Stationery,09/02/2016,lpc000339,12.97
Lancaster City Council,30UH,Lyreco,Governance,Printing & Stationery,23/02/2016,lpc000340,53.02
Lancaster City Council,30UH,Lyreco,Governance,Printing & Stationery,23/02/2016,lpc000342,13.34
Lancaster City Council,30UH,Lyreco,Governance,Printing & Stationery,23/02/2016,lpc000343,8.36
Lancaster City Council,30UH,Lyreco,Governance,Printing & Stationery,23/02/2016,lpc000345,5.26
Lancaster City Council,30UH,Lyreco,Governance,Printing & Stationery,23/03/2016,lpc000368,3.1
Lancaster City Council,30UH,Lyreco,Resources,Printing & Stationery,01/02/2016,jpc000641,6.01
Lancaster City Council,30UH,Lyreco,Resources,Printing & Stationery,01/02/2016,jpc000642,24.16
Lancaster City Council,30UH,Lyreco,Management Team,Printing & Stationery,09/03/2016,mpc000051,47.01
Lancaster City Council,30UH,Lyreco,Governance,Services - Consultants,22/03/2016,lpc000362,14.65
Lancaster City Council,30UH,Lyreco,Governance,Services - Consultants,22/03/2016,lpc000363,33.19
Lancaster City Council,30UH,Lyreco,Environmental Services,Office Equipment,11/02/2016,32359,27.06
Lancaster City Council,30UH,Lyreco,Governance,Printing & Stationery,01/02/2016,dpc000362,16.84
Lancaster City Council,30UH,Lyreco,Governance,Printing & Stationery,01/02/2016,dpc000363,44.16
Lancaster City Council,30UH,Lyreco,Regeneration and Planning,Printing & Stationery,11/01/2016,npc001018,5.4
Lancaster City Council,30UH,Mailchimp,Regeneration and Planning,Internet Provision,31/03/2016,33009,175.81
Lancaster City Council,30UH,Mailchimp,Regeneration and Planning,Marketing,01/02/2016,npc001036,53.62
Lancaster City Council,30UH,Mailchimp,Regeneration and Planning,Marketing,22/02/2016,npc001070,77.99
Lancaster City Council,30UH,Mailchimp,Regeneration and Planning,Marketing,29/03/2016,npc001123,77.11
Lancaster City Council,30UH,Manor Farm Nurseries,Environmental Services,Grounds Maintenance - Other,01/03/2016,32556,318.25
Lancaster City Council,30UH,Maplin,Health & Housing,Equipment and Tools - General,05/03/2016,bpc003986,88.31
Lancaster City Council,30UH,Marine Warehouse,Health & Housing,Equipment and Tools - General,29/01/2016,spc001390,41.66
Lancaster City Council,30UH,Marks and Spencer,Governance,Hospitality,22/03/2016,lpc000355,3.9
Lancaster City Council,30UH,Marks and Spencer,Governance,Hospitality,23/02/2016,lpc000341,10.5
Lancaster City Council,30UH,Marks and Spencer,Governance,Hospitality,22/03/2016,lpc000356,191
Lancaster City Council,30UH,Marks and Spencer,Governance,Hospitality,22/03/2016,lpc000357,20
Lancaster City Council,30UH,MBL Seminars,Governance,Service Training Budget,08/01/2016,lpc000330,100
Lancaster City Council,30UH,MDC Exports Ltd,Environmental Services,Equipment and Tools - General,24/02/2016,32471,76.05
Lancaster City Council,30UH,Micro-ID,Health & Housing,Equipment and Tools - General,30/03/2016,spc001522,825.21
Lancaster City Council,30UH,Microsoft,Resources,Miscellaneous Expenditure,12/01/2016,jpc000620,0.99
Lancaster City Council,30UH,Misgtry Medical Supplies,Health & Housing,Corporate Safety,11/02/2016,spc001418,703
Lancaster City Council,30UH,MOBILE FUN,Environmental Services,Mobile Telephones,04/03/2016,32659,55.78
Lancaster City Council,30UH,Mobility Linx,Health & Housing,Materials (Minor Adaptations),02/03/2016,spc001459,10
Lancaster City Council,30UH,Mobility Linx,Health & Housing,Materials (Minor Adaptations),27/01/2016,spc001383,15
Lancaster City Council,30UH,Mobility Linx,Health & Housing,Materials (Minor Adaptations),27/01/2016,spc001384,20
Lancaster City Council,30UH,Mobility Linx,Health & Housing,Materials (Minor Adaptations),01/03/2016,spc001455,15
Lancaster City Council,30UH,Monkey Office Supplies,Environmental Services,Materials - General,11/01/2016,31929,18.25
Lancaster City Council,30UH,Moonstore,Regeneration and Planning,Office Equipment,10/03/2016,npc001103,4.99
Lancaster City Council,30UH,Moonstore ,Regeneration and Planning,Office Equipment,10/03/2016,npc001104,3.99
Lancaster City Council,30UH,Morecambe Bay Partnership,Regeneration and Planning,Exhibitions,04/03/2016,32655,25
Lancaster City Council,30UH,Morplan,Regeneration and Planning,Equipment and Tools - General,28/01/2016,32116,34.5
Lancaster City Council,30UH,Morrisons,Regeneration and Planning,Exhibitions & Events - Expenses,25/01/2016,npc001028,13.73
Lancaster City Council,30UH,Morrisons,Regeneration and Planning,Catering Provisions,09/03/2016,npc001100,9.13
Lancaster City Council,30UH,Morrisons,Environmental Services,Cleaning Materials,12/01/2016,31956,10
Lancaster City Council,30UH,Morrisons,Environmental Services,Entertainment Fees,18/03/2016,32832,26.58
Lancaster City Council,30UH,Morrisons,Regeneration and Planning,Exhibitions & Events - Expenses,23/03/2016,npc001118,60
Lancaster City Council,30UH,Morrisons,Regeneration and Planning,Exhibitions & Events - Expenses,24/03/2016,npc001150,0.27
Lancaster City Council,30UH,Morrisons,Environmental Services,Hospitality,12/01/2016,31955,3.28
Lancaster City Council,30UH,Morrisons,Environmental Services,Office Equipment,24/01/2016,32066,10.65
Lancaster City Council,30UH,Morrisons,Regeneration and Planning,Office Equipment,18/02/2016,npc001067,5
Lancaster City Council,30UH,Morrisons,Health & Housing,Materials - General,18/02/2016,bpc003827,6.48
Lancaster City Council,30UH,Morrisons,Regeneration and Planning,Equipment and Tools - General,13/01/2016,npc001022,11.67
Lancaster City Council,30UH,Morrisons,Regeneration and Planning,Exhibitions & Events - Expenses,08/02/2016,npc001052,34.49
Lancaster City Council,30UH,Motor World,Health & Housing,Equipment and Tools - General,03/02/2016,spc001405,6.23
Lancaster City Council,30UH,Mountain Warehouse,Environmental Services,Clothing & Uniforms,15/03/2016,32764,20.87
Lancaster City Council,30UH,My Local,Health & Housing,Children & Young People,02/02/2016,bpc003880,3.49
Lancaster City Council,30UH,My Local,Resources,Hospitality,21/03/2016,ppc000454,4
Lancaster City Council,30UH,My Local,Resources,Hospitality,22/03/2016,ppc000459,6.67
Lancaster City Council,30UH,NATIONAL GRID,Environmental Services,Contracted Services,03/03/2016,32628,183.35
Lancaster City Council,30UH,National Portriat Gallery,Regeneration and Planning,Photographic Materials,30/03/2016,32965,290.73
Lancaster City Council,30UH,Network Rail,Governance,Service Training Budget,18/03/2016,lpc000350,11.55
Lancaster City Council,30UH,Nexday Catering Equipment Supp,Health & Housing,Services - Other Analysts,04/03/2016,spc001474,119.28
Lancaster City Council,30UH,NICE CAFE,Health & Housing,Services - General,04/01/2016,bpc003717,7.9
Lancaster City Council,30UH,Nisbets,Health & Housing,Equipment and Tools - General,01/02/2016,bpc003767,49.99
Lancaster City Council,30UH,Nisbets,Environmental Services,Equipment and Tools - General,11/01/2016,31925,213.18
Lancaster City Council,30UH,Nisbets,Environmental Services,Equipment and Tools - General,11/01/2016,31931,44.99
Lancaster City Council,30UH,Northern Rail,Health & Housing,Service Training Budget,11/02/2016,spc001420,23.2
Lancaster City Council,30UH,Northern Rail,Governance,Service Training Budget,21/01/2016,lpc000332,8.9
Lancaster City Council,30UH,Northern Rail,Health & Housing,Service Training Budget,18/02/2016,spc001433,74.2
Lancaster City Council,30UH,Northern Rail,Health & Housing,Service Training Budget,03/03/2016,spc001470,10.3
Lancaster City Council,30UH,Northern Rail,Governance,System Suspense Account    018,21/03/2016,lpc000351,95
Lancaster City Council,30UH,Northern Rail,Health & Housing,Use Of Public Tpt - Officers,04/01/2016,bpc003718,3.1
Lancaster City Council,30UH,Northern Rail,Governance,Use Of Public Tpt - Officers,01/02/2016,lpc000336,8.9
Lancaster City Council,30UH,Northern Rail,Health & Housing,Use Of Public Tpt - Officers,01/02/2016,bpc003784,28.6
Lancaster City Council,30UH,npower,Health & Housing,Home Improvement Works,19/01/2016,spc001357,49
Lancaster City Council,30UH,npower,Health & Housing,Home Improvement Works,19/01/2016,spc001358,49
Lancaster City Council,30UH,Office Coffee Co.,Resources,Catering Provisions,22/03/2016,ppc000456,140.73
Lancaster City Council,30UH,Office Depot,Environmental Services,Equipment and Tools - General,24/02/2016,32473,63.16
Lancaster City Council,30UH,Office Depot,Environmental Services,Printing & Stationery,24/02/2016,32473,3.22
Lancaster City Council,30UH,Office Needs,Health & Housing,R & M - Buildings,03/01/2016,bpc003709,165.93
Lancaster City Council,30UH,One Stop Plastics,Environmental Services,R & M - Buildings,12/01/2016,31951,628.25
Lancaster City Council,30UH,One Stop Promotions,Environmental Services,Equipment and Tools - General,06/01/2016,31888,62.26
Lancaster City Council,30UH,OnHotels,Resources,Service Training Budget,10/02/2016,jpc000652,66.02
Lancaster City Council,30UH,Oracle,Resources,Software - Anite Task,11/02/2016,jpc000653,1425.67
Lancaster City Council,30UH,Oracle,Resources,Software - Anite Task,11/02/2016,jpc000654,665.17
Lancaster City Council,30UH,Pagefast,Regeneration and Planning,Concerts - General,01/02/2016,32178,167.5
Lancaster City Council,30UH,PAR Group Ltd,Environmental Services,Entertainment Fees,17/03/2016,32781,120.25
Lancaster City Council,30UH,Parcel2Go.com,Regeneration and Planning,Marketing & Promotion,21/03/2016,32854,17.42
Lancaster City Council,30UH,Park Grand,Health & Housing,Service Training Budget,04/02/2016,spc001409,82.65
Lancaster City Council,30UH,Pay360,Regeneration and Planning,Services - General,08/03/2016,32694,5.03
Lancaster City Council,30UH,Pay360,Regeneration and Planning,Software Purchase\Licences,08/03/2016,32694,10
Lancaster City Council,30UH,PayPal Clubbercise,Health & Housing,Service Training Budget,03/02/2016,bpc003803,199
Lancaster City Council,30UH,PC VALET,Health & Housing,Printing & Stationery,02/03/2016,hpc000361,11.16
Lancaster City Council,30UH,PC WORLS CURRYS,Environmental Services,Miscellaneous Expenditure,03/02/2016,32265,204.15
Lancaster City Council,30UH,Peacocks salt,Health & Housing,Home Improvement Works,17/03/2016,spc001508,541.2
Lancaster City Council,30UH,PEARSON VUE,Environmental Services,Service Training Budget,10/02/2016,32344,120
Lancaster City Council,30UH,pedder street news,Health & Housing,Home Improvement Works,26/01/2016,spc001386,49.5
Lancaster City Council,30UH,Peli Products (UK) Ltd,Health & Housing,Equipment and Tools - General,09/03/2016,spc001481,67.65
Lancaster City Council,30UH,Peregine Livefoods Ltd,Environmental Services,Equipment and Tools - General,14/01/2016,31975,48
Lancaster City Council,30UH,Peregrine Livefoods Ltd,Environmental Services,Equipment and Tools - General,18/02/2016,32406,106.22
Lancaster City Council,30UH,Peregrine Livefoods Ltd,Environmental Services,Materials - General,11/01/2016,31926,22.74
Lancaster City Council,30UH,Peregrine Livefoods Ltd,Environmental Services,Materials - General,11/01/2016,31930,27.51
Lancaster City Council,30UH,Peregrine Livefoods Ltd,Environmental Services,Materials - General,02/02/2016,32254,53.85
Lancaster City Council,30UH,Peregrine Livefoods Ltd,Environmental Services,Materials - General,18/02/2016,32406,40.96
Lancaster City Council,30UH,Peregrine Livefoods Ltd,Environmental Services,Materials - General,29/02/2016,32511,44.33
Lancaster City Council,30UH,Peregrine Livefoods Ltd,Environmental Services,Materials - General,18/03/2016,32830,48.32
Lancaster City Council,30UH,Pet Planet,Environmental Services,Equipment and Tools - General,01/03/2016,32555,56.18
Lancaster City Council,30UH,PetPlanet,Environmental Services,Equipment and Tools - General,24/02/2016,32468,133.32
Lancaster City Council,30UH,Physical Company,Health & Housing,Equipment and Tools - General,01/02/2016,bpc003770,60.45
Lancaster City Council,30UH,Piloxing,Health & Housing,Service Training Budget,03/01/2016,bpc003710,17.22
Lancaster City Council,30UH,Plastic Sheets .com,Regeneration and Planning,Equipment and Tools - General,27/03/2016,npc001120,37.54
Lancaster City Council,30UH,Play.com,Resources,Equipment and Tools - General,07/03/2016,jpc000679,83.32
Lancaster City Council,30UH,Post Office,Regeneration and Planning,Printing & Stationery,01/03/2016,npc001078,18.93
Lancaster City Council,30UH,Post Office,Health & Housing,Services - General,07/03/2016,spc001476,11
Lancaster City Council,30UH,Post Office,Health & Housing,Services - General,24/03/2016,spc001519,31.5
Lancaster City Council,30UH,Post Office,Health & Housing,Services - General,08/01/2016,spc001327,1
Lancaster City Council,30UH,Post Office,Environmental Services,Printing & Stationery,02/03/2016,32611,6.45
Lancaster City Council,30UH,Post Office,Resources,Use Of Public Tpt - Officers,22/02/2016,jpc000658,1.73
Lancaster City Council,30UH,Post Office,Environmental Services,Printing & Stationery,07/01/2016,31900,6.45
Lancaster City Council,30UH,Post Office Limited,Health & Housing,Services - General,21/01/2016,spc001371,2.25
Lancaster City Council,30UH,Poundland Limited,Governance,Catering Provisions,27/01/2016,dpc000361,5
Lancaster City Council,30UH,Poundworld,Environmental Services,Equipment and Tools - General,03/03/2016,32619,2.5
Lancaster City Council,30UH,PPG Architectural Coatings UK ,Environmental Services,Materials - General,05/02/2016,32297,86.66
Lancaster City Council,30UH,PPG Architectural Coatings UK ,Environmental Services,R & M - Buildings,10/03/2016,32726,644.54
Lancaster City Council,30UH,PPLUK,Health & Housing,Miscellaneous Licences,02/02/2016,bpc003799,133.2
Lancaster City Council,30UH,Premier Office Supplies,Resources,Office Equipment,24/03/2016,rpc000083,1428
Lancaster City Council,30UH,Preston College,Health & Housing,Service Training Budget,01/02/2016,bpc003777,850
Lancaster City Council,30UH,ProjectorShop24,Resources,Equipment and Tools - General,01/03/2016,jpc000673,241.67
Lancaster City Council,30UH,Projectorshop24.co.uk,Resources,Fixtures & Fittings - General,07/01/2016,jpc000615,624.97
Lancaster City Council,30UH,Prosol Uk,Environmental Services,Other Fixed Plant,03/03/2016,32633,39
Lancaster City Council,30UH,Pye Motors,Health & Housing,Tenants Participation,05/01/2016,hpc000314,50
Lancaster City Council,30UH,Pye Motors,Health & Housing,Tenants Participation,01/03/2016,hpc000352,41.67
Lancaster City Council,30UH,Pye Motors,Health & Housing,Tenants Participation,01/03/2016,hpc000353,3.07
Lancaster City Council,30UH,Quality Plus,Health & Housing,R & M - Environmental Works,05/01/2016,hpc000315,87.5
Lancaster City Council,30UH,Quality Plus,Health & Housing,R & M - Environmental Works,05/01/2016,hpc000316,57.5
Lancaster City Council,30UH,Quality Plus,Health & Housing,R & M - Environmental Works,05/01/2016,hpc000317,82.5
Lancaster City Council,30UH,Quickfire Tableware Ltd,Environmental Services,Equipment and Tools - General,11/03/2016,32741,62.65
Lancaster City Council,30UH,Rainbow Faces Ltd,Environmental Services,Exhibitions & Events,22/03/2016,32871,410
Lancaster City Council,30UH,Rapid Racking Ltd,Environmental Services,Exhibitions & Events,11/03/2016,32749,1155
Lancaster City Council,30UH,Rapid Racking Ltd,Environmental Services,Exhibitions & Events,11/03/2016,32750,105
Lancaster City Council,30UH,Red Hot Plants,Environmental Services,Exhibitions & Events,11/03/2016,32747,266.5
Lancaster City Council,30UH,redactive,Resources,Conferences & Seminars,21/03/2016,fpc000165,834
Lancaster City Council,30UH,Rexel,Environmental Services,Materials - General,02/03/2016,32575,182.09
Lancaster City Council,30UH,Rexel,Environmental Services,Equipment and Tools - General,22/03/2016,32870,133.27
Lancaster City Council,30UH,RJB Stone Ltd,Environmental Services,Materials For Resale,03/03/2016,32624,216
Lancaster City Council,30UH,RLSS Direct,Health & Housing,Service Training Budget,23/03/2016,bpc003956,10.42
Lancaster City Council,30UH,RLSS UK,Health & Housing,Service Training Budget,17/03/2016,bpc003909,12.5
Lancaster City Council,30UH,Royal Mail,Regeneration and Planning,Services - General,17/03/2016,npc001111,10.82
Lancaster City Council,30UH,RSPB,Regeneration and Planning,AONB Executive Support,09/02/2016,npc001057,-220.84
Lancaster City Council,30UH,RSPB,Regeneration and Planning,AONB Executive Support,09/02/2016,npc001058,425
Lancaster City Council,30UH,Russums,Environmental Services,Clothing & Uniforms,05/02/2016,32290,59.42
Lancaster City Council,30UH,Ryelands service station,Health & Housing,Home Improvement Works,25/01/2016,spc001377,49
Lancaster City Council,30UH,Ryelands service Station,Health & Housing,Home Improvement Works,25/01/2016,spc001378,89
Lancaster City Council,30UH,Ryman Stationery,Health & Housing,Printing & Stationery,27/01/2016,hpc000328,3.74
Lancaster City Council,30UH,Ryman Stationery,Resources,Equipment and Tools - General,18/02/2016,ppc000439,14.98
Lancaster City Council,30UH,S and M Marshall Autocentre Lt,Environmental Services,Equipment and Tools - General,05/02/2016,32298,15
Lancaster City Council,30UH,Safescan,Regeneration and Planning,Office Equipment,16/03/2016,npc001107,154.9
Lancaster City Council,30UH,SAFETY FIRST AID,Environmental Services,First Aid Equipment,22/01/2016,32059,252.25
Lancaster City Council,30UH,Safety Signs and Notices,Environmental Services,Equipment and Tools - General,15/03/2016,32768,24.35
Lancaster City Council,30UH,Sainsburys,Health & Housing,Services - General,17/03/2016,bpc003912,37
Lancaster City Council,30UH,Sainsburys,Health & Housing,Cleaning Materials,04/03/2016,bpc003885,9.17
Lancaster City Council,30UH,Sainsburys,Governance,Hospitality,22/03/2016,lpc000365,8
Lancaster City Council,30UH,Sainsburys,Health & Housing,Tenants Participation,02/02/2016,hpc000340,3.17
Lancaster City Council,30UH,Sainsburys,Health & Housing,Tenants Participation,22/02/2016,hpc000351,7.7
Lancaster City Council,30UH,Sainsburys,Health & Housing,Tenants Participation,02/03/2016,hpc000358,17.37
Lancaster City Council,30UH,Sainsburys,Health & Housing,Tenants Participation,17/03/2016,hpc000364,10
Lancaster City Council,30UH,Saves Direct Ltd,Resources,Office Equipment,09/03/2016,ppc000448,29.12
Lancaster City Council,30UH,Scan Computers,Health & Housing,Computer Equipment,01/02/2016,bpc003768,14.55
Lancaster City Council,30UH,Scan Computers,Health & Housing,Computer Equipment,01/02/2016,bpc003769,7.23
Lancaster City Council,30UH,Scan Computers,Health & Housing,Equipment and Tools - General,25/02/2016,bpc003842,49.6
Lancaster City Council,30UH,Scan Computers,Health & Housing,Equipment and Tools - General,04/03/2016,bpc003889,37.12
Lancaster City Council,30UH,Scan International,Health & Housing,Equipment and Tools - General,29/02/2016,bpc003870,10.51
Lancaster City Council,30UH,Scan.co.uk,Health & Housing,Equipment and Tools - General,29/03/2016,bpc003978,8.94
Lancaster City Council,30UH,Scarletts,Environmental Services,Grounds Maintenance - Other,09/03/2016,32708,596.07
Lancaster City Council,30UH,Screwfix,Health & Housing,Equipment and Tools - General,13/02/2016,bpc003822,4.17
Lancaster City Council,30UH,Screwfix,Health & Housing,Equipment and Tools - General,17/03/2016,bpc003907,4.99
Lancaster City Council,30UH,Screwfix,Environmental Services,Equipment and Tools - General,01/03/2016,32553,31.38
Lancaster City Council,30UH,Screwfix,Health & Housing,Equipment and Tools - General,08/01/2016,bpc003725,23.9
Lancaster City Council,30UH,Screwfix,Environmental Services,Materials - General,25/02/2016,32477,131.51
Lancaster City Council,30UH,Screwfix,Environmental Services,Office Equipment,21/01/2016,32054,24.29
Lancaster City Council,30UH,Screwfix,Health & Housing,Protective Clothing,18/01/2016,spc001336,29.16
Lancaster City Council,30UH,Screwfix,Environmental Services,Equipment and Tools - General,11/01/2016,31928,53.31
Lancaster City Council,30UH,Screwfix,Environmental Services,Equipment and Tools - General,11/01/2016,31935,44.55
Lancaster City Council,30UH,Screwfix,Environmental Services,Equipment and Tools - General,14/01/2016,31988,85.95
Lancaster City Council,30UH,Screwfix,Environmental Services,Equipment and Tools - General,01/02/2016,32179,35
Lancaster City Council,30UH,Screwfix,Environmental Services,Equipment and Tools - General,10/03/2016,32724,74.98
Lancaster City Council,30UH,Screwfix,Health & Housing,Equipment and Tools - General,29/02/2016,bpc003871,14.99
Lancaster City Council,30UH,Secure Safe Ltd,Environmental Services,Equipment and Tools - General,01/02/2016,32173,1487.5
Lancaster City Council,30UH,Seton,Environmental Services,Equipment and Tools - General,15/03/2016,32765,32.4
Lancaster City Council,30UH,Seton,Health & Housing,Materials - General,29/01/2016,bpc003760,19.49
Lancaster City Council,30UH,Seton,Health & Housing,Equipment and Tools - General,29/02/2016,bpc003874,47.75
Lancaster City Council,30UH,SHAKESPEARE,Environmental Services,Materials - General,07/01/2016,31893,417.39
Lancaster City Council,30UH,"Shell, Lancaster",Environmental Services,Fuel Oil,31/03/2016,33002,32.92
Lancaster City Council,30UH,Shelter,Resources,Office Equipment,08/02/2016,rpc000078,37
Lancaster City Council,30UH,Shelter Shop,Health & Housing,Service Training Budget,08/03/2016,spc001480,64
Lancaster City Council,30UH,Shop Inc,Resources,Printing & Stationery,01/02/2016,jpc000648,9.75
Lancaster City Council,30UH,Shopfitting Warehouse,Regeneration and Planning,Miscellaneous Expenditure,22/03/2016,npc001117,119.95
Lancaster City Council,30UH,Signs Express,Health & Housing,Printing & Stationery,04/01/2016,bpc003712,42.84
Lancaster City Council,30UH,Signs Express,Environmental Services,Printing & Stationery,22/03/2016,32886,265.92
Lancaster City Council,30UH,Slingsby,Environmental Services,Equipment and Tools - General,17/03/2016,32782,14.5
Lancaster City Council,30UH,Slingsby,Resources,Equipment and Tools - General,08/03/2016,ppc000447,837
Lancaster City Council,30UH,SMARTCARD FOCUS,Environmental Services,Equipment and Tools - General,04/02/2016,32279,45.95
Lancaster City Council,30UH,Snap Frame Warehouse,Environmental Services,Office Equipment,17/03/2016,32779,96.78
Lancaster City Council,30UH,Society of London Theatre,Regeneration and Planning,Concerts - General,08/03/2016,32698,56.4
Lancaster City Council,30UH,SOCITM,Resources,Subscriptions,14/01/2016,jpc000623,1515
Lancaster City Council,30UH,Solent Cables,Health & Housing,Equipment and Tools - General,17/03/2016,bpc003927,16.57
Lancaster City Council,30UH,Solon security Ltd,Health & Housing,Home Improvement Works,17/03/2016,spc001507,265
Lancaster City Council,30UH,Solon security Ltd,Health & Housing,Sanctuary Scheme,17/03/2016,spc001504,908.7
Lancaster City Council,30UH,Somerset County Council,Regeneration and Planning,Subscriptions,07/01/2016,npc001011,400
Lancaster City Council,30UH,Sousvide Tools.com,Health & Housing,Equipment and Tools - General,29/01/2016,spc001394,2.99
Lancaster City Council,30UH,Sousvidetools.com,Health & Housing,Equipment and Tools - General,29/01/2016,spc001395,3.99
Lancaster City Council,30UH,SP Services UK Ltd,Health & Housing,Corporate Safety,23/03/2016,bpc003941,85.95
Lancaster City Council,30UH,SPALDINGS,Regeneration and Planning,Equipment and Tools - General,02/03/2016,npc001088,88.4
Lancaster City Council,30UH,Spar Store,Health & Housing,Materials For Resale,09/02/2016,bpc003817,14.16
Lancaster City Council,30UH,Spar Store,Environmental Services,Materials For Resale,25/01/2016,32077,12.95
Lancaster City Council,30UH,Speights,Environmental Services,Materials - General,03/02/2016,32270,66.51
Lancaster City Council,30UH,Speights,Environmental Services,Materials - General,09/03/2016,32702,45.86
Lancaster City Council,30UH,Speights,Environmental Services,Materials For Resale,03/02/2016,32270,387.02
Lancaster City Council,30UH,Speights,Environmental Services,Materials For Resale,09/03/2016,32702,423.8
Lancaster City Council,30UH,Sports Direct,Health & Housing,Cleaning Materials,21/03/2016,bpc003937,28.32
Lancaster City Council,30UH,Sports Direct,Health & Housing,Clothing & Uniforms,08/01/2016,bpc003723,335.88
Lancaster City Council,30UH,Sports Direct,Health & Housing,Clothing & Uniforms,03/01/2016,bpc003704,48.32
Lancaster City Council,30UH,Sports Direct,Health & Housing,Clothing & Uniforms,03/01/2016,bpc003705,36.66
Lancaster City Council,30UH,Sports Direct,Health & Housing,Clothing & Uniforms,03/01/2016,bpc003706,-43.33
Lancaster City Council,30UH,Sports Direct,Health & Housing,Clothing & Uniforms,03/01/2016,bpc003708,-44.17
Lancaster City Council,30UH,Sports Direct.,Health & Housing,Clothing & Uniforms,25/02/2016,bpc003841,116
Lancaster City Council,30UH,Sports Direct.,Health & Housing,Clothing & Uniforms,17/03/2016,bpc003908,33.32
Lancaster City Council,30UH,St Winifreds,Health & Housing,Homelessness Priority Need Order,18/01/2016,spc001347,660
Lancaster City Council,30UH,St Winifreds,Health & Housing,Homelessness Priority Need Order,19/01/2016,spc001352,90
Lancaster City Council,30UH,St Winifreds,Health & Housing,Homelessness Priority Need Order,16/02/2016,spc001429,540
Lancaster City Council,30UH,St Winifreds,Health & Housing,Homelessness Priority Need Order,22/02/2016,spc001434,230
Lancaster City Council,30UH,St Winifreds,Health & Housing,Homelessness Priority Need Order,29/02/2016,spc001447,450
Lancaster City Council,30UH,St Winifreds,Health & Housing,Services - Bed and Breakfast,13/01/2016,spc001334,30
Lancaster City Council,30UH,St Winifreds,Health & Housing,Services - Bed and Breakfast,20/01/2016,spc001361,30
Lancaster City Council,30UH,St Winifreds,Health & Housing,Services - Bed and Breakfast,25/01/2016,spc001374,60
Lancaster City Council,30UH,St Winifreds,Health & Housing,Services - Bed and Breakfast,26/01/2016,spc001380,60
Lancaster City Council,30UH,St Winifreds,Health & Housing,Services - Bed and Breakfast,02/02/2016,spc001403,150
Lancaster City Council,30UH,St Winifreds,Health & Housing,Services - Bed and Breakfast,04/02/2016,spc001407,60
Lancaster City Council,30UH,St Winifreds,Health & Housing,Services - Bed and Breakfast,08/02/2016,spc001410,120
Lancaster City Council,30UH,St Winifreds,Health & Housing,Services - Bed and Breakfast,09/02/2016,spc001413,30
Lancaster City Council,30UH,St Winifreds,Health & Housing,Services - Bed and Breakfast,11/02/2016,spc001419,60
Lancaster City Council,30UH,St Winifreds,Health & Housing,Services - Bed and Breakfast,16/02/2016,spc001429,180
Lancaster City Council,30UH,St Winifreds,Health & Housing,Services - Bed and Breakfast,23/02/2016,spc001438,180
Lancaster City Council,30UH,St Winifreds,Health & Housing,Services - Bed and Breakfast,29/02/2016,spc001447,270
Lancaster City Council,30UH,St Winifreds,Health & Housing,Services - Bed and Breakfast,17/03/2016,spc001511,270
Lancaster City Council,30UH,St Winifreds,Health & Housing,Homelessness Priority Need Order,08/03/2016,spc001477,260
Lancaster City Council,30UH,St Winifreds,Health & Housing,Services - Bed and Breakfast,28/01/2016,spc001387,360
Lancaster City Council,30UH,St Winifreds,Health & Housing,Services - Bed and Breakfast,02/02/2016,spc001399,390
Lancaster City Council,30UH,St Winifreds,Health & Housing,Services - Bed and Breakfast,25/02/2016,spc001446,120
Lancaster City Council,30UH,St Winifreds,Health & Housing,Services - Bed and Breakfast,01/03/2016,spc001457,120
Lancaster City Council,30UH,St Winifreds,Health & Housing,Services - Bed and Breakfast,02/03/2016,spc001464,60
Lancaster City Council,30UH,St Winifreds,Health & Housing,Services - Bed and Breakfast,03/03/2016,spc001472,240
Lancaster City Council,30UH,St Winifreds,Health & Housing,Services - Bed and Breakfast,08/03/2016,spc001477,90
Lancaster City Council,30UH,St Winifreds,Health & Housing,Services - Bed and Breakfast,08/03/2016,spc001479,60
Lancaster City Council,30UH,St Winifreds,Health & Housing,Services - Bed and Breakfast,10/03/2016,spc001483,300
Lancaster City Council,30UH,St Winifreds,Health & Housing,Services - Bed and Breakfast,18/01/2016,spc001338,90
Lancaster City Council,30UH,St Winifreds,Health & Housing,Services - Bed and Breakfast,18/01/2016,spc001339,90
Lancaster City Council,30UH,St Winifreds,Health & Housing,Services - Bed and Breakfast,18/01/2016,spc001340,90
Lancaster City Council,30UH,St Winifreds,Health & Housing,Services - Bed and Breakfast,18/01/2016,spc001341,150
Lancaster City Council,30UH,St Winifreds,Health & Housing,Homelessness Priority Need Order,25/02/2016,spc001445,150
Lancaster City Council,30UH,STA,Health & Housing,Materials For Resale,17/03/2016,bpc003915,19.4
Lancaster City Council,30UH,STA,Health & Housing,Service Training Budget,01/02/2016,bpc003789,130
Lancaster City Council,30UH,Stagecoach,Regeneration and Planning,Stagecoach Tickets,08/01/2016,31907,9507.16
Lancaster City Council,30UH,Stagecoach,Regeneration and Planning,Stagecoach Tickets,09/02/2016,32316,15703.64
Lancaster City Council,30UH,Stagecoach,Regeneration and Planning,Stagecoach Tickets,11/03/2016,32744,10418.02
Lancaster City Council,30UH,Stamps Direct Ltd,Resources,Printing & Stationery,15/03/2016,fpc000161,37.1
Lancaster City Council,30UH,Star Editions,Regeneration and Planning,Materials For Resale,19/01/2016,32015,250.57
Lancaster City Council,30UH,Starbucks,Health & Housing,Subsistence,21/03/2016,bpc003932,12.8
Lancaster City Council,30UH,Station Garage Arnside,Regeneration and Planning,Petrol & Derv,01/02/2016,npc001038,17.67
Lancaster City Council,30UH,Station Pub,Regeneration and Planning,Exhibitions & Events - Expenses,25/01/2016,npc001027,41.65
Lancaster City Council,30UH,Steeles Removals Worldwide Ltd,Environmental Services,Purchase Of Equipment,03/03/2016,32634,7100
Lancaster City Council,30UH,Sunny`s Inn,Health & Housing,Services - Bed and Breakfast,11/01/2016,spc001328,472.5
Lancaster City Council,30UH,Survey Monkey,Regeneration and Planning,Consultation,30/03/2016,npc001127,249.17
Lancaster City Council,30UH,Swallow Aquatics and Mill Race,Environmental Services,Equipment and Tools - General,23/02/2016,32461,15.82
Lancaster City Council,30UH,Systor Systems Inc,Health & Housing,IT Consumables,23/02/2016,spc001443,225
Lancaster City Council,30UH,Talbot Fashions LLP,Environmental Services,Materials For Resale,05/02/2016,32300,105.34
Lancaster City Council,30UH,Talbot Fashions LLP,Environmental Services,Materials For Resale,10/03/2016,32725,263.85
Lancaster City Council,30UH,Tesco ,Health & Housing,Equipment and Tools - General,10/02/2016,bpc003819,4.58
Lancaster City Council,30UH,Tesco ,Health & Housing,Equipment and Tools - General,17/03/2016,bpc003921,129.12
Lancaster City Council,30UH,Tester.co.uk,Health & Housing,Home Improvement Works,17/03/2016,spc001506,258
Lancaster City Council,30UH,Tetra handsets and accessories,Health & Housing,Equipment and Tools - General,23/02/2016,spc001439,283.85
Lancaster City Council,30UH,TF PUMP SUPPLIES,Environmental Services,Miscellaneous Expenditure,06/01/2016,31876,173
Lancaster City Council,30UH,The BlingZ,Regeneration and Planning,Office Equipment,10/03/2016,npc001102,5.82
Lancaster City Council,30UH,The Borough,Governance,Services - Consultants,22/03/2016,lpc000352,166.67
Lancaster City Council,30UH,The Borough,Health & Housing,Tenants Participation,01/03/2016,hpc000354,14.17
Lancaster City Council,30UH,The Chartered Institute Of Env. Health,Health & Housing,Service Training Budget,18/01/2016,spc001342,130
Lancaster City Council,30UH,The Entertainer,Health & Housing,Services - General,17/03/2016,bpc003911,256.21
Lancaster City Council,30UH,The Hanging Basket,Governance,Civic Receptions & Mayoral Functions,01/03/2016,dpc000366,41.67
Lancaster City Council,30UH,The Register Office,Health & Housing,Services - Burial Of The Dead,17/03/2016,spc001499,4
Lancaster City Council,30UH,The Sun Hotel,Governance,Hospitality,23/03/2016,lpc000367,129.17
Lancaster City Council,30UH,The Toner Place,Resources,Computer Consumables,22/02/2016,jpc000659,46.5
Lancaster City Council,30UH,The Uniform & Leisurewear Company Ltd,Health & Housing,Clothing & Uniforms,25/01/2016,spc001376,8.05
Lancaster City Council,30UH,The Veterinary Health Centre,Environmental Services,Services - Vets,06/01/2016,31885,789.3
Lancaster City Council,30UH,The Works,Health & Housing,Equipment and Tools - General,04/01/2016,spc001312,4.5
Lancaster City Council,30UH,"The Z Hotel, Picadilly London",Health & Housing,Equipment and Tools - General,11/03/2016,spc001490,90.83
Lancaster City Council,30UH,Thomas Graham,Health & Housing,Equipment and Tools - General,07/01/2016,spc001324,25.42
Lancaster City Council,30UH,Thomas Graham,Health & Housing,Equipment and Tools - General,21/03/2016,spc001515,15
Lancaster City Council,30UH,Thomas Graham,Health & Housing,Materials - General,21/01/2016,spc001365,14.4
Lancaster City Council,30UH,Thomas Graham,Health & Housing,Materials - General,21/01/2016,spc001366,18.62
Lancaster City Council,30UH,Thomas Graham,Health & Housing,Materials - General,21/01/2016,spc001367,8.75
Lancaster City Council,30UH,Thomas Graham,Health & Housing,Materials - General,21/01/2016,spc001369,20.24
Lancaster City Council,30UH,Thomas Graham,Health & Housing,Materials - General,21/01/2016,spc001370,12.04
Lancaster City Council,30UH,Thomas Graham,Health & Housing,Materials - General,25/01/2016,spc001375,56.36
Lancaster City Council,30UH,Thomas Graham,Health & Housing,Materials - General,04/02/2016,spc001406,10.58
Lancaster City Council,30UH,Thomas Graham,Health & Housing,Materials - General,03/03/2016,spc001471,55.87
Lancaster City Council,30UH,Thomas Graham,Health & Housing,Materials - General,10/03/2016,spc001486,15.75
Lancaster City Council,30UH,Thomas Graham,Health & Housing,Materials - General,10/03/2016,spc001487,19.13
Lancaster City Council,30UH,Thomas Graham,Health & Housing,Materials - General,21/03/2016,spc001517,19.37
Lancaster City Council,30UH,Thomas Graham,Health & Housing,Materials (Minor Adaptations),07/01/2016,spc001323,24.99
Lancaster City Council,30UH,Thomas Graham,Health & Housing,Materials (Minor Adaptations),10/03/2016,spc001484,28.33
Lancaster City Council,30UH,Thomas Graham,Health & Housing,Materials (Minor Adaptations),10/03/2016,spc001485,4.78
Lancaster City Council,30UH,Thomas Graham,Health & Housing,Materials (Minor Adaptations),10/03/2016,spc001488,12.78
Lancaster City Council,30UH,Thomas Graham,Health & Housing,Materials (Minor Adaptations),21/03/2016,spc001516,12.96
Lancaster City Council,30UH,Thomas Graham,Health & Housing,Materials (Minor Adaptations),21/03/2016,spc001518,13.21
Lancaster City Council,30UH,Thomas Graham,Health & Housing,Sanctuary Scheme,21/01/2016,spc001368,3.34
Lancaster City Council,30UH,Thomas Graham,Health & Housing,Sanctuary Scheme,23/02/2016,spc001442,4.2
Lancaster City Council,30UH,Thos Graham,Regeneration and Planning,Equipment and Tools - General,12/01/2016,npc001021,14.01
Lancaster City Council,30UH,Thos Graham,Regeneration and Planning,Equipment and Tools - General,07/03/2016,npc001096,147.26
Lancaster City Council,30UH,TIC MORECAMBE,Environmental Services,Materials - General,13/01/2016,31971,15.75
Lancaster City Council,30UH,Timpson,Environmental Services,Equipment and Tools - General,03/03/2016,32620,80
Lancaster City Council,30UH,Timpson,Health & Housing,Equipment and Tools - General,23/02/2016,spc001440,6
Lancaster City Council,30UH,Timpson,Resources,Fixtures & Fittings - General,20/01/2016,ppc000422,18.75
Lancaster City Council,30UH,Timpson,Resources,Office Equipment,20/01/2016,ppc000420,11.67
Lancaster City Council,30UH,Timpson,Resources,Office Equipment,20/01/2016,ppc000421,7.5
Lancaster City Council,30UH,Timpson,Resources,Office Equipment,01/02/2016,ppc000427,14.58
Lancaster City Council,30UH,Timpson,Resources,R & M - Buildings,28/01/2016,ppc000424,8.33
Lancaster City Council,30UH,Timpson,Resources,R & M - Buildings,05/02/2016,ppc000432,6.25
Lancaster City Council,30UH,Timpson,Regeneration and Planning,Management Plan Projects,29/03/2016,npc001125,33.33
Lancaster City Council,30UH,Timpson,Regeneration and Planning,Printing & Stationery,23/02/2016,npc001071,10.79
Lancaster City Council,30UH,Toll House Inn,Governance,Services - Consultants,23/02/2016,lpc000344,194.17
Lancaster City Council,30UH,Tony Sharp,Regeneration and Planning,Repair & Mtce Of Vehicles,11/01/2016,npc001019,251.65
Lancaster City Council,30UH,Tony Sharp,Regeneration and Planning,Repair & Mtce Of Vehicles,11/01/2016,npc001020,13.8
Lancaster City Council,30UH,Tool Station,Health & Housing,Home Improvement Works,02/03/2016,spc001469,16.63
Lancaster City Council,30UH,Tool Station,Health & Housing,Home Improvement Works,02/03/2016,spc001461,332.67
Lancaster City Council,30UH,Tool Station,Health & Housing,Home Improvement Works,17/03/2016,spc001503,212.27
Lancaster City Council,30UH,Tool Station,Health & Housing,Materials (Minor Adaptations),05/01/2016,spc001317,135
Lancaster City Council,30UH,Tool Station,Health & Housing,Materials (Minor Adaptations),02/03/2016,spc001468,112.5
Lancaster City Council,30UH,Toolstop,Environmental Services,Office Equipment,03/03/2016,32635,40.83
Lancaster City Council,30UH,Town House  Gallery,Resources,Long Service Awards,18/03/2016,rpc000081,125
Lancaster City Council,30UH,TP Express,Regeneration and Planning,Use Of Public Tpt - Officers,15/02/2016,npc001062,12.2
Lancaster City Council,30UH,TP Express,Governance,Use Of Public Tpt - Officers,06/01/2016,lpc000329,63.6
Lancaster City Council,30UH,Trainline,Health & Housing,Children & Young People,05/01/2016,hpc000308,9.74
Lancaster City Council,30UH,Trainline,Health & Housing,Children & Young People,02/02/2016,hpc000333,9.84
Lancaster City Council,30UH,Trainline,Health & Housing,Children & Young People,02/02/2016,hpc000334,9.84
Lancaster City Council,30UH,Trainline,Health & Housing,Children & Young People,02/03/2016,hpc000356,15.86
Lancaster City Council,30UH,Trainline,Health & Housing,Children & Young People,02/03/2016,hpc000357,25.14
Lancaster City Council,30UH,Trainline,Health & Housing,Children & Young People,02/03/2016,hpc000360,25.14
Lancaster City Council,30UH,Trainline,Health & Housing,Use Of Public Tpt - Officers,02/02/2016,bpc003792,103.38
Lancaster City Council,30UH,Trainline,Regeneration and Planning,Use Of Public Tpt - Officers,21/03/2016,32852,173.4
Lancaster City Council,30UH,Transpennine Express,Regeneration and Planning,Use Of Public Tpt - Officers,21/03/2016,npc001116,5.9
Lancaster City Council,30UH,Transpennine Express,Health & Housing,Service Training Budget,08/03/2016,spc001478,17.5
Lancaster City Council,30UH,TransPennine Express,Resources,Use Of Public Tpt - Officers,10/02/2016,jpc000651,17.8
Lancaster City Council,30UH,Travellers Choice,Health & Housing,Tpt & Plant - Casual Hire,23/02/2016,bpc003836,250
Lancaster City Council,30UH,Travelodge,Health & Housing,Homelessness Priority Need Order,16/02/2016,spc001426,76.67
Lancaster City Council,30UH,Travelodge,Health & Housing,Homelessness Priority Need Order,16/02/2016,spc001427,78.33
Lancaster City Council,30UH,Travelodge,Health & Housing,Homelessness Priority Need Order,16/02/2016,spc001428,39.17
Lancaster City Council,30UH,Travelodge,Regeneration and Planning,Hospitality,21/03/2016,32853,119.92
Lancaster City Council,30UH,Travelodge,Health & Housing,Services - Bed and Breakfast,11/01/2016,spc001329,32.5
Lancaster City Council,30UH,Travis Perkins,Environmental Services,Equipment and Tools - General,10/02/2016,32335,38
Lancaster City Council,30UH,Travis Perkins,Environmental Services,Materials - General,04/01/2016,31815,23.32
Lancaster City Council,30UH,Travis Perkins,Environmental Services,Materials - General,27/01/2016,32094,315.61
Lancaster City Council,30UH,Travis Perkins,Environmental Services,R & M - Buildings,01/03/2016,32554,92.6
Lancaster City Council,30UH,Travis Perkins,Environmental Services,R & M - Buildings,02/03/2016,32577,47.8
Lancaster City Council,30UH,Travis Perkins,Regeneration and Planning,R & M - Buildings,09/03/2016,npc001101,10.29
Lancaster City Council,30UH,Trespass International,Environmental Services,Clothing & Uniforms,15/03/2016,32766,31.61
Lancaster City Council,30UH,Trust Medical,Governance,Corporate Training Budget,05/01/2016,lpc000328,90
Lancaster City Council,30UH,Twitter,Regeneration and Planning,Internet Provision,30/03/2016,32968,50
Lancaster City Council,30UH,Twitter,Regeneration and Planning,Internet Provision,30/03/2016,32969,40
Lancaster City Council,30UH,Twitter,Regeneration and Planning,Internet Provision,30/03/2016,32966,10
Lancaster City Council,30UH,UK Paper Rolls,Environmental Services,Printing & Stationery,18/02/2016,32404,59.17
Lancaster City Council,30UH,UK POS,Health & Housing,Printing & Stationery,03/02/2016,bpc003809,24.94
Lancaster City Council,30UH,UK POS,Health & Housing,Printing & Stationery,29/02/2016,bpc003859,22.4
Lancaster City Council,30UH,Valley Training,Health & Housing,Service Training Budget,18/03/2016,spc001513,650
Lancaster City Council,30UH,Vanguard Consult,Health & Housing,Service Training Budget,06/01/2016,spc001321,900
Lancaster City Council,30UH,Vidalxl.co.uk,Health & Housing,Cleaning Materials,01/02/2016,bpc003780,29.99
Lancaster City Council,30UH,Viking Direct,Regeneration and Planning,Printing & Stationery,04/02/2016,32281,115.71
Lancaster City Council,30UH,Viking Direct,Regeneration and Planning,Printing & Stationery,02/03/2016,32605,59.9
Lancaster City Council,30UH,Viking Direct,Environmental Services,Office Equipment,04/03/2016,33091,249
Lancaster City Council,30UH,Viking Driect,Health & Housing,Printing & Stationery,23/03/2016,bpc003966,198.3
Lancaster City Council,30UH,Virgin Trains,Resources,Services - Consultants,09/03/2016,jpc000681,-87.75
Lancaster City Council,30UH,Virgin Trains,Resources,Use Of Public Tpt - Officers,14/01/2016,fpc000151,23.7
Lancaster City Council,30UH,Virgin Trains,Resources,Use Of Public Tpt - Officers,01/02/2016,fpc000157,19.7
Lancaster City Council,30UH,Virgin Trains,Resources,Use Of Public Tpt - Officers,01/03/2016,jpc000671,47.85
Lancaster City Council,30UH,Virgin Trains,Resources,Use Of Public Tpt - Officers,01/03/2016,jpc000672,39.2
Lancaster City Council,30UH,Virgin Trains,Health & Housing,Children & Young People,22/03/2016,bpc003939,8.9
Lancaster City Council,30UH,Virgin Trains,Governance,Civic Receptions & Mayoral Functions,03/03/2016,dpc000369,8.9
Lancaster City Council,30UH,Virgin Trains,Regeneration and Planning,Clothing & Uniforms,15/01/2016,npc001023,134.6
Lancaster City Council,30UH,Virgin Trains,Governance,Members Expenses - Travel,04/01/2016,dpc000353,-5.28
Lancaster City Council,30UH,Virgin Trains,Governance,Members Expenses - Travel,23/02/2016,dpc000364,44.8
Lancaster City Council,30UH,Virgin Trains,Governance,Members Expenses - Travel,23/03/2016,dpc000376,29.8
Lancaster City Council,30UH,Virgin Trains,Governance,Service Training Budget,12/01/2016,dpc000355,84.4
Lancaster City Council,30UH,Virgin Trains,Governance,Service Training Budget,13/01/2016,dpc000356,36
Lancaster City Council,30UH,Virgin Trains,Health & Housing,Service Training Budget,29/01/2016,spc001392,99
Lancaster City Council,30UH,Virgin Trains,Resources,Service Training Budget,02/03/2016,jpc000678,80
Lancaster City Council,30UH,Virgin Trains,Regeneration and Planning,Services - Consultants,11/01/2016,npc001015,158.6
Lancaster City Council,30UH,Virgin Trains,Governance,Services - General,18/01/2016,dpc000358,29.8
Lancaster City Council,30UH,Virgin Trains,Governance,Services - General,02/03/2016,dpc000367,29.8
Lancaster City Council,30UH,Virgin Trains,Environmental Services,Services - General,26/01/2016,32084,100.85
Lancaster City Council,30UH,virgin trains,Health & Housing,Use Of Public Tpt - Officers,09/03/2016,bpc003903,56
Lancaster City Council,30UH,Virgin trains,Governance,Use Of Public Tpt - Officers,11/03/2016,dpc000371,-9.6
Lancaster City Council,30UH,Virgin Trains,Health & Housing,Use Of Public Tpt - Officers,01/02/2016,bpc003788,177.8
Lancaster City Council,30UH,Virgin Trains,Health & Housing,Use Of Public Tpt - Officers,03/02/2016,bpc003807,189
Lancaster City Council,30UH,Virgin Trains,Health & Housing,Use Of Public Tpt - Officers,29/02/2016,bpc003861,104.2
Lancaster City Council,30UH,Virgin Trains,Governance,Use Of Public Tpt - Officers,29/02/2016,dpc000365,24.9
Lancaster City Council,30UH,Virgin Trains,Governance,Use Of Public Tpt - Officers,09/03/2016,dpc000370,19.6
Lancaster City Council,30UH,Virgin Trains,Resources,Use Of Public Tpt - Officers,19/01/2016,fpc000156,38
Lancaster City Council,30UH,Virgin Trains,Health & Housing,Use Of Public Tpt - Officers,11/03/2016,spc001491,53.1
Lancaster City Council,30UH,Virgin Trains,Health & Housing,Use Of Public Tpt - Officers,11/03/2016,spc001492,28
Lancaster City Council,30UH,Virgin Trains,Health & Housing,Use Of Public Tpt - Officers,11/03/2016,spc001495,90.5
Lancaster City Council,30UH,Virgin Trains,Resources,Use Of Public Tpt - Officers,01/02/2016,jpc000635,22
Lancaster City Council,30UH,Virgin Trains,Resources,Use Of Public Tpt - Officers,01/02/2016,jpc000636,87.75
Lancaster City Council,30UH,Virgin Trains,Resources,Use Of Public Tpt - Officers,01/02/2016,jpc000637,168.75
Lancaster City Council,30UH,Virgin Trains,Regeneration and Planning,Use Of Public Tpt - Officers,20/01/2016,npc001026,67.5
Lancaster City Council,30UH,Virgin Trains,Health & Housing,Use Of Public Tpt - Officers,01/02/2016,bpc003782,374
Lancaster City Council,30UH,Virgin Trains,Health & Housing,Use Of Public Tpt - Officers,29/02/2016,bpc003869,230
Lancaster City Council,30UH,Virgin Trains,Health & Housing,Service Training Budget,09/02/2016,spc001411,34.1
Lancaster City Council,30UH,Virgin Trains,Health & Housing,Services - Civil Contingencies,09/02/2016,spc001412,3.2
Lancaster City Council,30UH,Virgin Trains,Health & Housing,Use Of Public Tpt - Officers,29/02/2016,bpc003868,345
Lancaster City Council,30UH,Vista Print,Environmental Services,Materials For Resale,14/01/2016,31987,178.84
Lancaster City Council,30UH,Vivomed,Health & Housing,Cleansing Equipment,02/03/2016,bpc003878,8.08
Lancaster City Council,30UH,Vivomed,Health & Housing,Cleansing Equipment,02/03/2016,bpc003879,28.98
Lancaster City Council,30UH,vurgin,Resources,Use Of Public Tpt - Officers,01/02/2016,fpc000158,17.8
Lancaster City Council,30UH,W H Smith,Health & Housing,Materials - General,02/03/2016,spc001467,3.75
Lancaster City Council,30UH,Wagner Spraytech,Regeneration and Planning,Equipment and Tools - General,02/03/2016,npc001089,11.43
Lancaster City Council,30UH,WAITROSE,Environmental Services,Materials - General,14/01/2016,31977,5.94
Lancaster City Council,30UH,Waterwalkerz Ltd,Health & Housing,Equipment and Tools - General,23/03/2016,bpc003959,789
Lancaster City Council,30UH,West Coast Trains,Health & Housing,Use Of Public Tpt - Officers,02/03/2016,bpc003881,8.9
Lancaster City Council,30UH,West Coast Trains,Health & Housing,Use Of Public Tpt - Officers,11/03/2016,spc001497,20
Lancaster City Council,30UH,Westminster Briefings,Resources,Service Training Budget,18/03/2016,jpc000682,175
Lancaster City Council,30UH,Westmorland Security,Resources,Disaster Provision,22/02/2016,jpc000656,40
Lancaster City Council,30UH,WeVideo,Regeneration and Planning,Marketing,03/03/2016,npc001095,7.14
Lancaster City Council,30UH,Whitepaper,Resources,Service Training Budget,02/03/2016,fpc000160,149
Lancaster City Council,30UH,Whittakers,Health & Housing,Clothing & Uniforms,18/02/2016,bpc003831,111.6
Lancaster City Council,30UH,Wickes,Health & Housing,Equipment and Tools - General,04/03/2016,bpc003887,15.26
Lancaster City Council,30UH,Wickes,Environmental Services,Equipment and Tools - General,14/01/2016,31981,254.58
Lancaster City Council,30UH,Wickes,Environmental Services,Equipment and Tools - General,19/01/2016,32019,44.88
Lancaster City Council,30UH,Wickes,Health & Housing,Materials - General,11/02/2016,spc001421,36.61
Lancaster City Council,30UH,Wickes,Environmental Services,Office Equipment,07/02/2016,32307,33.27
Lancaster City Council,30UH,Wiggle Ltd,Health & Housing,Clothing & Uniforms,23/03/2016,bpc003950,47.99
Lancaster City Council,30UH,Wiggle Ltd,Health & Housing,Clothing & Uniforms,23/03/2016,bpc003951,24.98
Lancaster City Council,30UH,Wilkinsons Ltd,Resources,Office Equipment,05/02/2016,ppc000431,8.32
Lancaster City Council,30UH,Wilkinsons Ltd,Resources,Office Equipment,17/03/2016,ppc000451,5
Lancaster City Council,30UH,Wilkinsons Ltd,Resources,Printing & Stationery,01/02/2016,jpc000647,1.85
Lancaster City Council,30UH,Wilkinsons Ltd,Resources,Cleaning Materials,22/03/2016,ppc000458,1.5
Lancaster City Council,30UH,Wilkinsons Ltd,Resources,Equipment and Tools - General,20/01/2016,ppc000423,4
Lancaster City Council,30UH,Wilkinsons Ltd,Health & Housing,Equipment Funded by Reserves,22/02/2016,hpc000349,1.5
Lancaster City Council,30UH,Wilkinsons Ltd,Health & Housing,Equipment Funded by Reserves,22/02/2016,hpc000350,6.62
Lancaster City Council,30UH,winter halter,Health & Housing,R & M - Buildings,13/01/2016,bpc003733,161.75
Lancaster City Council,30UH,winter halter ,Health & Housing,R & M - Buildings,13/01/2016,bpc003732,377.72
Lancaster City Council,30UH,Wolverson Fitness,Health & Housing,Equipment and Tools - General,05/03/2016,bpc003987,129.17
Lancaster City Council,30UH,Woodberry of Leamington Spa,Environmental Services,Equipment and Tools - General,04/02/2016,32280,1434
Lancaster City Council,30UH,Woodberry of Leamington Spa,Environmental Services,Equipment and Tools - General,24/02/2016,32472,956
Lancaster City Council,30UH,Woodchester Group,Health & Housing,Materials - General,12/02/2016,bpc003821,110.95
Lancaster City Council,30UH,Woodchester Group,Health & Housing,Materials For Resale,10/02/2016,bpc003818,212.9
Lancaster City Council,30UH,www.sta.co.uk,Health & Housing,Service Training Budget,02/03/2016,bpc003877,58.33
Lancaster City Council,30UH,Yess electricalsq,Health & Housing,Home Improvement Works,17/03/2016,spc001502,2408.56
Lancaster City Council,30UH,York AV,Health & Housing,Equipment and Tools - General,04/03/2016,bpc003890,134
Lancaster City Council,30UH,York Survey Supply,Environmental Services,Equipment and Tools - General,16/02/2016,32381,84
Lancaster City Council,30UH,York Survey Supply,Environmental Services,Equipment and Tools - General,18/02/2016,32412,145.1
Lancaster City Council,30UH,York Survey Supply,Environmental Services,R & M - Buildings,28/01/2016,32103,97.12
